Workbook

Sheet フレームワーク
A1: 仮想事例の題材
B2: LABC/MBC患者に対する，第3選択薬としてのTreatment A（新薬）のTreatment B（既存薬）に対する費用対効果評価
B3: LABC：locally advanced breast cancer（局所進行乳がん）
B4: MBC：metastatic breast cancer（転移性乳がん）
A6: 費用対効果のフレームワーク
A7: 対象患者 | B7: 少なくとも2つ以上の化学療法を実施し，その後LABC/MBCの患者
A8: 比較対照 | B8: Treatment B
A9: 観点 | B9: 公的医療費支払者
A10: 分析対象期間 | B10: 5年
A11: アウトカム | B11: QALY
A13: 疾患推移モデル | B13: State：
B14: l PF（Progression Free）
B15: Ø 疾患進行せずに生存した状態
B16: l P（Progression）
B17: Ø 疾患進行した状態
B18: l D (Death)
B29: Note: 図中の数字はTreatment Aの疾患推移確率（初期設定）

Sheet 基本分析
A1: 基本分析 | B1: ①ピンクのセルに値を設定 | E1: Treatment A | S1: Treatment B | V1: メモ：Treatment Bのコホート推移は行列の掛け算で計算しています（同じ結果になります）。余力のある方はご参照ください。
A2: 推移確率（transition probabilities） | D2: 参照時のセル名称 | E2: サイクル | F2: コホート推移（人） | J2: 割引なし | M2: 割引あり | P2: 生存曲線 | S2: サイクル | T2: コホート推移（人） | X2: 割引なし | AA2: 割引あり | AD2: 生存曲線 | AG2: 推移確率（行列表現）
A3: Treatment A (PF, progression-free) (P, progression) (D, death) | B3: PF→PF | C3: =1-C4-C5 -> 0.85 | D3: 確率A_PFまま | E3: （月） | F3: PF | G3: P | H3: D | I3: 合計 | J3: Cost (千円/人) | K3: LYs (年/人) | L3: QALYs (年/人) | M3: Cost (千円/人) | N3: LYs (年/人) | O3: QALYs (年/人) | P3: PFS | Q3: OS | S3: （月） | T3: PF | U3: P | V3: D | W3: 合計 | X3: Cost (千円/人) | Y3: LYs (年/人) | Z3: QALYs (年/人) | AA3: Cost (千円/人) | AB3: LYs (年/人) | AC3: QALYs (年/人) | AD3: PFS | AE3: OS | AG3: From \ To | AH3: PF | AI3: P | AJ3: D | AK3: Sum
B4: PF→P | C4: 0.1 | D4: 確率A_PFtoP | E4: 0 | F4: 1000 | G4: 0 | H4: 0 | I4: =SUM(F4:H4) -> 1000 | J4: =IF(半周期補正="Y", 0.5*(F4*費用A_PF+G4*費用A_P)/I4,"-") -> - | K4: =IF(半周期補正="Y", 0.5*(F4+G4)/I4/12, "-") -> - | L4: =IF(半周期補正="Y", 0.5*(F4*効用_PF+G4*効用_P)/I4/12, "-") -> - | M4: =IF(半周期補正="Y", J4/((1+割引率)^E4),"-") -> - | N4: =IF(半周期補正="Y", K4/((1+割引率)^E4), "-") -> - | O4: =IF(半周期補正="Y", L4/((1+割引率)^E4), "-") -> - | P4: =F4/I4 -> 1 | Q4: =(F4+G4)/I4 -> 1 | S4: 0 | T4: 1000 | U4: 0 | V4: 0 | W4: =SUM(T4:V4) -> 1000 | X4: =IF(半周期補正="Y", 0.5*(T4*費用B_PF+U4*費用B_P)/W4, "-") -> - | Y4: =IF(半周期補正="Y", 0.5*(T4+U4)/W4/12, "-") -> - | Z4: =IF(半周期補正="Y", 0.5*(T4*効用_PF+U4*効用_P)/W4/12, "-") -> - | AA4: =IF(半周期補正="Y", X4/((1+割引率)^S4), "-") -> - | AB4: =IF(半周期補正="Y", Y4/((1+割引率)^S4), "-") -> - | AC4: =IF(半周期補正="Y", Z4/((1+割引率)^S4), "-") -> - | AD4: =T4/W4 -> 1 | AE4: =(T4+U4)/W4 -> 1 | AG4: PF | AH4: =確率B_PFまま -> 0.8 | AI4: =確率B_PFtoP -> 0.13 | AJ4: =確率B_PFtoD -> 0.07 | AK4: =SUM(AH4:AJ4) -> 1
B5: PF→D | C5: 0.05 | D5: 確率A_PFtoD | E5: 1 | F5: =F4*確率A_PFまま -> 850 | G5: =F4*確率A_PFtoP+G4*確率A_Pまま -> 100 | H5: =F4*確率A_PFtoD+G4*確率A_PtoD+H4 -> 50 | I5: 1000 | J5: =(F5*費用A_PF+G5*費用A_P)/I5 -> 97 | K5: =(F5+G5)/I5/12 -> 0.07916666667 | L5: =(F5*効用_PF+G5*効用_P)/I5/12 -> 0.05458333333 | M5: =J5/((1+割引率)^E5) -> 96.84006077 | N5: =K5/((1+割引率)^E5) -> 0.07903613207 | O5: =L5/((1+割引率)^E5) -> 0.05449333316 | P5: =F5/I5 -> 0.85 | Q5: =(F5+G5)/I5 -> 0.95 | S5: 1 | T5: =MMULT(T4:V4,$AH$4:$AJ$6) -> 800 | U5: 130 | V5: 70 | W5: =SUM(T5:V5) -> 1000 | X5: =(T5*費用B_PF+U5*費用B_P)/W5 -> 79.6 | Y5: =(T5+U5)/W5/12 -> 0.0775 | Z5: =(T5*効用_PF+U5*効用_P)/W5/12 -> 0.05316666667 | AA5: =X5/((1+割引率)^S5) -> 79.4687509 | AB5: =Y5/((1+割引率)^S5) -> 0.0773722135 | AC5: =Z5/((1+割引率)^S5) -> 0.05307900238 | AD5: =T5/W5 -> 0.8 | AE5: =(T5+U5)/W5 -> 0.93 | AG5: P | AH5: 0 | AI5: =確率B_Pまま -> 0.9 | AJ5: =確率B_PtoD -> 0.1 | AK5: =SUM(AH5:AJ5) -> 1
B6: P→P | C6: =1-C7 -> 0.9 | D6: 確率A_Pまま | E6: 2 | F6: 722.5 | G6: 175 | H6: 102.5 | I6: 1000 | J6: 93.25 | K6: =(F6+G6)/I6/12 -> 0.07479166667 | L6: 0.05089583333 | M6: 92.94274149 | N6: 0.07454522832 | O6: 0.05072813169 | P6: =F6/I6 -> 0.7225 | Q6: =(F6+G6)/I6 -> 0.8975 | S6: 2 | T6: =MMULT(T5:V5,$AH$4:$AJ$6) -> 640 | U6: 221 | V6: 139 | W6: =SUM(T6:V6) -> 1000 | X6: 77.72 | Y6: =(T6+U6)/W6/12 -> 0.07175 | Z6: 0.04838333333 | AA6: 77.4639128 | AB6: 0.07151358393 | AC6: 0.04822391037 | AD6: 0.64 | AE6: 0.861 | AG6: D | AH6: 0 | AI6: 0 | AJ6: =確率B_Dまま -> 1 | AK6: =SUM(AH6:AJ6) -> 1
B7: P→D | C7: 0.1 | D7: 確率A_PtoD | E7: 3 | F7: 614.125 | G7: 229.75 | H7: 156.125 | I7: 1000 | J7: 88.9825 | K7: 0.07032291667 | L7: 0.04731145833 | M7: 88.54306682 | N7: 0.06997563239 | O7: 0.04707781436 | P7: 0.614125 | Q7: 0.843875 | S7: 3 | T7: =MMULT(T6:V6,$AH$4:$AJ$6) -> 512 | U7: 282.1 | V7: 205.9 | W7: 1000 | X7: 74.812 | Y7: 0.066175 | Z7: 0.04397166667 | AA7: 74.44254673 | AB7: 0.06584819989 | AC7: 0.043754516 | AD7: 0.512 | AE7: 0.7941
B8: D→D | C8: 1 | D8: 確率A_Dまま | E8: 4 | F8: 522.00625 | G8: 268.1875 | H8: 209.80625 | I8: 1000 | J8: 84.383125 | K8: 0.06584947917 | L8: 0.04385973958 | M8: 83.82795679 | N8: 0.06541624637 | O8: 0.04357118031 | P8: 0.52200625 | Q8: 0.79019375 | S8: 4 | T8: =MMULT(T7:V7,$AH$4:$AJ$6) -> 409.6 | U8: 320.45 | V8: 269.95 | W8: 1000 | X8: 71.222 | Y8: 0.0608375 | Z8: 0.03991583333 | AA8: 70.75342064 | AB8: 0.0604372417 | AC8: 0.03965322156 | AD8: 0.4096 | AE8: 0.73005 | AG8: メモ：Treatment Bは推移確率を行列で表し、行列の掛け算で計算
A9: Treatment B | B9: PF→PF | C9: =1-C10-C11 -> 0.8 | D9: 確率B_PFまま | E9: 5 | F9: 443.7053125 | G9: 293.569375 | H9: 262.7253125 | I9: 1000 | J9: 79.59885625 | K9: 0.06143955729 | L9: 0.04056127865 | M9: 78.94478068 | N9: 0.06093469937 | O9: 0.04022798062 | P9: 0.4437053125 | Q9: 0.7372746875 | S9: 5 | T9: =MMULT(T8:V8,$AH$4:$AJ$6) -> 327.68 | U9: 341.653 | V9: 330.667 | W9: 1000 | X9: 67.21276 | Y9: 0.05577775 | Z9: 0.03619731667 | AA9: 66.66046281 | AB9: 0.05531941598 | AC9: 0.03589987796 | AD9: 0.32768 | AE9: 0.669333 | AG9: メモ：行列の演算は範囲を選択、式を入力、Ctrl+Shift+Enter
B10: PF→P | C10: 0.13 | D10: 確率B_PFtoP | E10: 6 | F10: 377.1495156 | G10: 308.5829688 | H10: 314.2675156 | I10: 1000 | J10: 74.74490781 | K10: 0.0571443737 | L10: 0.03742953685 | M10: 74.00848682 | N10: 0.05658136121 | O10: 0.03706076395 | P10: 0.3771495156 | Q10: 0.6857324844 | S10: 6 | T10: =MMULT(T9:V9,$AH$4:$AJ$6) -> 262.144 | U10: 350.0861 | V10: 387.7699 | W10: 1000 | X10: 62.981852 | Y10: 0.051019175 | Z10: 0.03279603833 | AA10: 62.36132601 | AB10: 0.05051651077 | AC10: 0.03247291678 | AD10: 0.262144 | AE10: 0.6122301 | AG10: メモ：下の画面が出たらキャンセル（又はEscキーを押す）してください。
B11: PF→D | C11: 0.07 | D11: 確率B_PFtoD | E11: 7 | F11: 320.5770883 | G11: 315.4396234 | H11: 363.9832883 | I11: 1000 | J11: 69.91046364 | K11: 0.05300139264 | L11: 0.03447231132 | M11: 69.10753709 | N11: 0.05239266795 | O11: 0.03407639442 | P11: 0.3205770883 | Q11: 0.6360167117 | S11: 7 | T11: =MMULT(T10:V10,$AH$4:$AJ$6) -> 209.7152 | U11: 349.15621 | V11: 441.12859 | W11: 1000 | X11: 58.6759612 | Y11: 0.0465726175 | Z11: 0.02969119717 | AA11: 58.00206369 | AB11: 0.04603772774 | AC11: 0.02935019169 | AD11: 0.2097152 | AE11: 0.55887141
B12: P→P | C12: =1-C13 -> 0.9 | D12: 確率B_Pまま | E12: 8 | F12: 272.490525 | G12: 315.9533699 | H12: 411.556105 | I12: 1000 | J12: 65.16345689 | K12: 0.04903699125 | L12: 0.03169294912 | M12: 64.30883877 | N12: 0.04839387157 | O12: 0.03127729639 | P12: 0.272490525 | Q12: 0.588443895 | S12: 8 | T12: =MMULT(T11:V11,$AH$4:$AJ$6) -> 167.77216 | U12: 341.503565 | V12: 490.724275 | W12: 1000 | X12: 54.4022006 | Y12: 0.04243964375 | Z12: 0.02686188758 | AA12: 53.68871625 | AB12: 0.04188304822 | AC12: 0.02650959418 | AD12: 0.16777216 | AE12: 0.509275725
B13: P→D | C13: 0.1 | D13: 確率B_PtoD | E13: 9 | F13: 231.6169463 | G13: 311.6070854 | H13: 456.7759683 | I13: 1000 | J13: 60.55454488 | K13: 0.04526866931 | L13: 0.0290913428 | M13: 59.66183622 | N13: 0.04460130845 | O13: 0.02866247171 | P13: 0.2316169463 | Q13: 0.5432240317 | S13: 9 | T13: =MMULT(T12:V12,$AH$4:$AJ$6) -> 134.217728 | U13: 329.1635893 | V13: 536.6186827 | W13: 1000 | X13: 50.23704896 | Y13: 0.03861510978 | Z13: 0.02428754693 | AA13: 49.49644313 | AB13: 0.03804583718 | AC13: 0.02392949448 | AD13: 0.134217728 | AE13: 0.4633813173
B14: D→D | C14: 1 | D14: 確率B_Dまま | E14: 10 | F14: 196.8744043 | G14: 303.6080715 | H14: 499.5175241 | I14: =SUM(F14:H14) -> 1000 | J14: 56.12040902 | K14: 0.04170687299 | L14: 0.02666474383 | M14: 55.20189895 | N14: 0.04102426602 | O14: 0.02622832799 | P14: 0.1968744043 | Q14: 0.5004824759 | S14: 10 | T14: =MMULT(T13:V13,$AH$4:$AJ$6) -> 107.3741824 | U14: 313.695535 | V14: 578.9302826 | W14: 1000 | X14: 46.23339879 | Y14: 0.03508914312 | Z14: 0.02194827072 | AA14: 45.4767072 | AB14: 0.03451484704 | AC14: 0.02158904833 | AD14: 0.1073741824 | AE14: 0.4210697174
A15: 費用（千円/サイクル）（cost） | E15: 11 | F15: 167.3432437 | G15: 292.9347048 | H15: 539.7220515 | I15: 1000 | J15: 51.88648895 | K15: 0.03835649571 | L15: 0.02440842446 | M15: 50.95312127 | N15: 0.03766651429 | O15: 0.02396934995 | P15: 0.1673432437 | Q15: 0.4602779485 | S15: 11 | T15: =MMULT(T14:V14,$AH$4:$AJ$6) -> 85.89934592 | U15: 296.2846252 | V15: 617.8160289 | W15: 1000 | X15: 42.4261027 | Y15: 0.03184866426 | Z15: 0.01982502644 | AA15: 41.66291457 | AB15: 0.03127574992 | AC15: 0.01946840106 | AD15: 0.08589934592 | AE15: 0.3821839711
A16: Treatment A | B16: PF state | C16: 100 | D16: 費用A_PF | E16: 12 | F16: 142.2417571 | G16: 280.3755587 | H16: 577.3826842 | I16: 1000 | J16: 47.86924276 | K16: 0.03521810965 | L16: 0.02231621377 | M16: 46.93063015 | N16: 0.03452755848 | O16: 0.02187864095 | P16: 0.1422417571 | Q16: 0.4226173158 | S16: 12 | T16: =MMULT(T15:V15,$AH$4:$AJ$6) -> 68.71947674 | U16: 277.8230777 | V16: 653.4574456 | W16: 1000 | X16: 38.83632746 | Y16: 0.0288785462 | Z16: 0.01789979003 | AA16: 38.07483084 | AB16: 0.0283123002 | AC16: 0.01754881375 | AD16: 0.06871947674 | AE16: 0.3465425544
B17: P state | C17: 120 | D17: 費用A_P | E17: 13 | F17: 120.9054936 | G17: 266.5621785 | H17: 612.5323279 | I17: 1000 | J17: 44.07801078 | K17: 0.03228897268 | L17: 0.02038092938 | M17: 43.14248274 | N17: 0.03160365955 | O17: 0.01994835698 | P17: 0.1209054936 | Q17: 0.3874676721 | S17: 13 | T17: =MMULT(T16:V16,$AH$4:$AJ$6) -> 54.97558139 | U17: 258.9743019 | V17: 686.0501167 | W17: 1000 | X17: 35.47496274 | Y17: 0.02616249027 | Z17: 0.01615562401 | AA17: 34.72202898 | AB17: 0.02560720788 | AC17: 0.01581273106 | AD17: 0.05497558139 | AE17: 0.3139498833
A18: Treatment B | B18: PF state | C18: 80 | D18: 費用B_PF | E18: 14 | F18: 102.7696695 | G18: 251.99651 | H18: 645.2338204 | I18: 1000 | J18: 40.51654816 | K18: 0.0295638483 | L18: 0.01859472289 | M18: 39.5912218 | N18: 0.02888866225 | O18: 0.01817005228 | P18: 0.1027696695 | Q18: 0.3547661796 | S18: 14 | T18: =MMULT(T17:V17,$AH$4:$AJ$6) -> 43.98046511 | U18: 240.2236973 | V18: 715.7958376 | W18: 1000 | X18: 32.34528088 | Y18: 0.0236836802 | Z18: 0.01457671199 | AA18: 31.60657183 | AB18: 0.0231427868 | AC18: 0.01424380565 | AD18: 0.04398046511 | AE18: 0.2842041624
B19: P state | C19: 120 | D19: 費用B_P | E19: 15 | F19: 87.3542191 | G19: 237.073826 | H19: 675.5719549 | I19: 1000 | J19: 37.18428103 | K19: 0.02703567042 | L19: 0.01694935408 | M19: 36.27514641 | N19: 0.02637466359 | O19: 0.01653495197 | P19: 0.0873542191 | Q19: 0.3244280451 | S19: 15 | T19: =MMULT(T18:V18,$AH$4:$AJ$6) -> 35.18437209 | U19: 221.918788 | V19: 742.8968399 | W19: 1000 | X19: 29.44500433 | Y19: 0.02142526334 | Z19: 0.01314836111 | AA19: 28.72509064 | AB19: 0.02090142778 | AC19: 0.01282689112 | AD19: 0.03518437209 | AE19: 0.2571031601
A20: 効用値（utility） | E20: 16 | F20: 74.25108624 | G20: 222.1018653 | H20: 703.6470485 | I20: 1000 | J20: 34.07733246 | K20: 0.02469607929 | L20: 0.01543640663 | M20: 33.18934607 | N20: 0.0240525494 | O20: 0.01503416508 | P20: 0.07425108624 | Q20: 0.2963529515 | S20: 16 | T20: =MMULT(T19:V19,$AH$4:$AJ$6) -> 28.14749767 | U20: 204.3008776 | V20: 767.5516248 | W20: 1000 | X20: 26.76790512 | Y20: 0.01937069794 | Z20: 0.01185698124 | AA20: 26.07038763 | AB20: 0.01886593671 | AC20: 0.01154801228 | AD20: 0.02814749767 | AE20: 0.2324483752
A21: Treatment A, B | B21: PF state | C21: 0.7 | D21: 効用_PF | E21: 17 | F21: 63.1134233 | G21: 207.3167874 | H21: 729.5697893 | I21: 1000 | J21: 31.18935682 | K21: 0.02253585089 | L21: 0.01404745573 | M21: 30.32653849 | N21: 0.02191242203 | O21: 0.01365884873 | P21: 0.0631134233 | Q21: 0.2704302107 | S21: 17 | T21: =MMULT(T20:V20,$AH$4:$AJ$6) -> 22.51799814 | U21: 187.5299645 | V21: 789.9520373 | W21: 1000 | X21: 24.30503559 | Y21: 0.01750399689 | Z21: 0.01069004812 | AA21: 23.63266424 | AB21: 0.01701976859 | AC21: 0.01039432001 | AD21: 0.02251799814 | AE21: 0.2100479627
B22: P state | C22: 0.6 | D22: 効用_P | E22: 18 | F22: 53.64640981 | G22: 192.896451 | H22: 753.4571392 | I22: 1000 | J22: 28.5122151 | K22: 0.0205452384 | L22: 0.01277419645 | M22: 27.67774483 | N22: 0.01994393855 | O22: 0.01240033258 | P22: 0.05364640981 | Q22: 0.2465428608 | S22: 18 | T22: =MMULT(T21:V21,$AH$4:$AJ$6) -> 18.01439851 | U22: 171.7043078 | V22: 810.2812937 | W22: 1000 | X22: 22.04566882 | Y22: 0.01580989219 | Z22: 0.009636055304 | AA22: 21.4004557 | AB22: 0.01534718227 | AC22: 0.009354035768 | AD22: 0.01801439851 | AE22: 0.1897187063
B23: D state | C23: 0 | D23: 効用_D | E23: 19 | F23: 45.59944833 | G23: 178.9714469 | H23: 775.4291048 | I23: 1000 | J23: 26.03651846 | K23: 0.01871424127 | L23: 0.01160854016 | M23: 25.23283061 | N23: 0.01813657539 | O23: 0.01125021105 | P23: 0.04559944833 | Q23: 0.2245708952 | S23: 19 | T23: =MMULT(T22:V22,$AH$4:$AJ$6) -> 14.41151881 | U23: 156.8757488 | V23: 828.7127323 | W23: 1000 | X23: 19.97801137 | Y23: 0.01427393897 | Z23: 0.008684459373 | AA23: 19.3613358 | AB23: 0.01383333508 | AC23: 0.008416389952 | AD23: 0.01441151881 | AE23: 0.1712872677
A24: 割引（discounting） | E24: 20 | F24: 38.75953108 | G24: 165.634247 | H24: 795.6062219 | I24: 1000 | J24: 23.75206275 | K24: 0.01703281484 | L24: 0.010542685 | M24: 22.98093595 | N24: 0.01647983297 | O24: 0.01020040959 | P24: 0.03875953108 | Q24: 0.2043937781 | S24: 20 | T24: =MMULT(T23:V23,$AH$4:$AJ$6) -> 11.52921505 | U24: 143.0616714 | V24: 845.4091135 | W24: 1000 | X24: 18.08973777 | Y24: 0.01288257387 | Z24: 0.007825621115 | AA24: 17.50244219 | AB24: 0.01246433239 | AC24: 0.007571557027 | AD24: 0.01152921505 | AE24: 0.1545908865
A25: 割引率（discount rate）（月） | C25: 0.001651581302 | D25: 割引率 | E25: 21 | F25: 32.94560142 | G25: 152.9467754 | H25: 814.1076232 | I25: 1000 | J25: 21.64817319 | K25: 0.0154910314 | L25: 0.009569165521 | M25: 20.91081468 | N25: 0.01496339132 | O25: 0.009243230137 | P25: 0.03294560142 | Q25: 0.1858923768 | S25: 21 | T25: =MMULT(T24:V24,$AH$4:$AJ$6) -> 9.223372037 | U25: 130.2543022 | V25: 860.5223257 | W25: 1000 | X25: 16.36838603 | Y25: 0.01162313952 | Z25: 0.007050745147 | AA25: 15.81086237 | AB25: 0.01122724372 | AC25: 0.006810589689 | AD25: 0.009223372037 | AE25: 0.1394776743
A26: 半周期補正（half cycle correction） | E26: 22 | F26: 28.00376121 | G26: 140.946658 | H26: 831.0495808 | I26: 1000 | J26: 19.71397508 | K26: 0.0140792016 | L26: 0.008680885638 | M26: 19.01109893 | N26: 0.01357722597 | O26: 0.008371379944 | P26: 0.02800376121 | Q26: 0.1689504192 | S26: 22 | T26: =MMULT(T25:V25,$AH$4:$AJ$6) -> 7.378697629 | U26: 118.4279104 | V26: 874.193392 | W26: 1000 | X26: 14.80164505 | Y26: 0.010483884 | Z26: 0.006351819547 | AA26: 14.27391164 | AB26: 0.01011009474 | AC26: 0.006125353677 | AD26: 0.007378697629 | AE26: 0.125806608
A27: 補正（Y：補正あり、N：補正なし） | C27: N | D27: 半周期補正 | E27: 23 | F27: 23.80319703 | G27: 129.6523683 | H27: 846.5444346 | I27: 1000 | J27: 17.9386039 | K27: 0.01278796378 | L27: 0.007871138244 | M27: 17.27050266 | N27: 0.01231169179 | O27: 0.007577987378 | P27: 0.02380319703 | Q27: 0.1534555654 | S27: 23 | T27: =MMULT(T26:V26,$AH$4:$AJ$6) -> 5.902958104 | U27: 107.54435 | V27: 886.5526919 | W27: 1000 | X27: 13.37755865 | Y27: 0.009453942344 | Z27: 0.005721556724 | AA27: 12.87932793 | AB27: 0.009101841886 | AC27: 0.005508464379 | AD27: 0.005902958104 | AE27: 0.1134473081
E28: 24 | F28: 20.23271747 | G28: 119.0674512 | H28: 860.6998313 | I28: 1000 | J28: 16.31136589 | K28: 0.01160834739 | L28: 0.007133614413 | M28: 15.67797567 | N28: 0.01115758111 | O28: 0.006856607471 | P28: 0.02023271747 | Q28: 0.1393001687 | S28: 24 | T28: =MMULT(T27:V27,$AH$4:$AJ$6) -> 4.722366483 | U28: 97.55729957 | V28: 897.7203339 | W28: 1000 | X28: 12.08466527 | Y28: 0.008523305505 | Z28: 0.005153336357 | AA28: 11.61540299 | AB28: 0.008192335164 | AC28: 0.004953226025 | AD28: 0.004722366483 | AE28: 0.1022796661
E29: 25 | F29: 17.19780985 | G29: 109.1839778 | H29: 873.6182123 | I29: 1000 | J29: 14.82185833 | K29: 0.01053181564 | L29: 0.006462404466 | M29: 14.22281736 | N29: 0.01010616126 | O29: 0.006201219606 | P29: 0.01719780985 | Q29: 0.1263817877 | S29: 25 | T29: =MMULT(T28:V28,$AH$4:$AJ$6) -> 3.777893186 | U29: 88.41547726 | V29: 907.8066296 | W29: 1000 | X29: 10.91208873 | Y29: 0.00768278087 | Z29: 0.004641150965 | AA29: 10.47106521 | AB29: 0.007372273217 | AC29: 0.004453573977 | AD29: 0.003777893186 | AE29: 0.09219337044
E30: 26 | F30: 14.61813837 | G30: 99.98536104 | H30: 885.3965006 | I30: 1000 | J30: 13.46005716 | K30: 0.009550291618 | L30: 0.00585199279 | M30: 12.89475808 | N30: 0.009149195916 | O30: 0.005606219232 | P30: 0.01461813837 | Q30: 0.1146034994 | S30: 26 | T30: =MMULT(T29:V29,$AH$4:$AJ$6) -> 3.022314549 | U30: 80.06505565 | V30: 916.9126298 | W30: 1000 | X30: 9.849591841 | Y30: 0.006923947516 | Z30: 0.004179554464 | AA30: 9.435926049 | AB30: 0.006633153717 | AC30: 0.004004020418 | AD30: 0.003022314549 | AE30: 0.0830873702
A31: メモ：基本分析のパラメータを初期値に戻します | E31: 27 | F31: 12.42541762 | G31: 91.44863877 | H31: 896.1259436 | I31: 1000 | J31: 12.21637841 | K31: 0.008656171366 | L31: 0.005297247966 | M31: 11.68401459 | N31: 0.008278953801 | O31: 0.00506640515 | P31: 0.01242541762 | Q31: 0.1038740564 | S31: 27 | T31: =MMULT(T30:V30,$AH$4:$AJ$6) -> 2.417851639 | U31: 72.45145097 | V31: 925.1306974 | W31: 1000 | X31: 8.887602248 | Y31: 0.006239108551 | Z31: 0.003763613894 | AA31: 8.500299416 | AB31: 0.00596722145 | AC31: 0.003599603593 | AD31: 0.002417851639 | AE31: 0.07486930261
E32: 28 | F32: 10.56160498 | G32: 83.54631665 | H32: 905.8920784 | I32: 1000 | J32: 11.0817185 | K32: 0.007842326802 | L32: 0.004793409456 | M32: 10.58132482 | N32: 0.007488207472 | O32: 0.004576963624 | P32: 0.01056160498 | Q32: 0.09410792163 | S32: 28 | T32: =MMULT(T31:V31,$AH$4:$AJ$6) -> 1.934281311 | U32: 65.52062659 | V32: 932.5450921 | W32: 1000 | X32: 8.017217696 | Y32: 0.005621242325 | Z32: 0.003388864406 | AA32: 7.655201187 | AB32: 0.005367415799 | AC32: 0.003235840638 | AD32: 0.001934281311 | AE32: 0.0674549079
E33: 29 | F33: 8.977364229 | G33: 76.24784549 | H33: 914.7747903 | I33: 1000 | J33: 10.04747788 | K33: 0.00710210081 | L33: 0.004336071854 | M33: 9.577966426 | N33: 0.006770224719 | O33: 0.004133450318 | P33: 0.008977364229 | Q33: 0.08522520972 | S33: 29 | T33: =MMULT(T32:V32,$AH$4:$AJ$6) -> 1.547425049 | U33: 59.2200205 | V33: 939.2325545 | W33: 1000 | X33: 7.230196464 | Y33: 0.005063953796 | Z33: 0.003051267486 | AA33: 6.892334555 | AB33: 0.004827318857 | AC33: 0.002908683939 | AD33: 0.001547425049 | AE33: 0.06076744555
A34: メモ：年利を月利（1/12年）に換算 | E34: 30 | F34: 7.630759595 | G34: 69.52079736 | H34: 922.848443 | I34: 1000 | J34: 9.105571643 | K34: 0.006429296413 | L34: 0.003921167511 | M34: 8.665762581 | N34: 0.00611875437 | O34: 0.003731770835 | P34: 0.007630759595 | Q34: 0.07715155696 | S34: 30 | T34: =MMULT(T33:V33,$AH$4:$AJ$6) -> 1.237940039 | U34: 53.49918371 | V34: 945.2628763 | W34: 1000 | X34: 6.518937248 | Y34: 0.004561426979 | Z34: 0.002747172354 | AA34: 6.204065455 | AB34: 0.004341105071 | AC34: 0.002614480927 | AD34: 0.001237940039 | AE34: 0.05473712375
A35: 年利 | B35: 0.02 | E35: 31 | F35: 6.486145656 | G35: 63.33179358 | H35: 930.1820608 | I35: 1000 | J35: 8.248429796 | K35: 0.005818161603 | L35: 0.003544948176 | M35: 7.83707805 | N35: 0.005528008085 | O35: 0.003368160514 | P35: 0.006486145656 | Q35: 0.06981793924 | S35: 31 | T35: =MMULT(T34:V34,$AH$4:$AJ$6) -> 0.9903520314 | U35: 48.31019754 | V35: 950.6994504 | W35: 1000 | X35: 5.876451867 | Y35: 0.004108379131 | Z35: 0.002473280412 | AA35: 5.583391395 | AB35: 0.003903492993 | AC35: 0.002349937153 | AD35: 0.0009903520314 | AE35: 0.04930054957
A36: 月利 | B36: =(1+B35)^(1/12)-1 -> 0.001651581302 | E36: 32 | F36: 5.513223807 | G36: 57.64722879 | H36: 936.8395474 | I36: 1000 | J36: 7.468989836 | K36: 0.00526337105 | L36: 0.003203966162 | M36: 7.084807866 | N36: 0.004992639358 | O36: 0.003039163952 | P36: 0.005513223807 | Q36: 0.0631604526 | S36: 32 | T36: =MMULT(T35:V35,$AH$4:$AJ$6) -> 0.7922816251 | U36: 43.60792355 | V36: 955.5997948 | W36: 1000 | X36: 5.296333356 | Y36: 0.003700017098 | Z36: 0.002226612606 | AA36: 5.023906184 | AB36: 0.003509699547 | AC36: 0.00211208247 | AD36: 0.0007922816251 | AE36: 0.04440020518
A37: メモ：中医協ガイドラインの割引率は年率2%です。 | E37: 33 | F37: =F36*確率A_PFまま -> 4.686240236 | G37: =F36*確率A_PFtoP+G36*確率A_Pまま -> 52.43382829 | H37: =F36*確率A_PFtoD+G36*確率A_PtoD+H36 -> 942.8799315 | I37: 1000 | J37: =(F37*費用A_PF+G37*費用A_P)/I37 -> 6.760683419 | K37: 0.004760005711 | L37: =(F37*効用_PF+G37*効用_P)/I37/12 -> 0.002895055428 | M37: =J37/((1+割引率)^E37) -> 6.402360544 | N37: =K37/((1+割引率)^E37) -> 0.004507720723 | O37: =L37/((1+割引率)^E37) -> 0.002741614641 | P37: 0.004686240236 | Q37: 0.05712006853 | S37: 33 | T37: =MMULT(T36:V36,$AH$4:$AJ$6) -> 0.6338253001 | U37: 39.35012781 | V37: 960.0160469 | W37: 1000 | X37: =(T37*費用B_PF+U37*費用B_P)/W37 -> 4.772721361 | Y37: 0.003331996092 | Z37: =(T37*効用_PF+U37*効用_P)/W37/12 -> 0.002004479533 | AA37: =X37/((1+割引率)^S37) -> 4.519762432 | AB37: =Y37/((1+割引率)^S37) -> 0.00315539702 | AC37: =Z37/((1+割引率)^S37) -> 0.001898240145 | AD37: 0.0006338253001 | AE37: 0.03998395311
A38: これをサイクル（=月）あたりに換算して用います。 | E38: 34 | F38: 3.983304201 | G38: 47.65906949 | H38: 948.3576263 | I38: 1000 | J38: 6.117418759 | K38: 0.004303531141 | L38: 0.002615312886 | M38: 5.783637396 | N38: 0.004068719933 | O38: 0.002472615004 | P38: 0.003983304201 | Q38: 0.05164237369 | S38: 34 | T38: =MMULT(T37:V37,$AH$4:$AJ$6) -> 0.5070602401 | U38: 35.49751232 | V38: 963.9954274 | W38: 1000 | X38: 4.300266297 | Y38: 0.003000381046 | Z38: 0.00180445413 | AA38: 4.065633227 | AB38: 0.002836672902 | AC38: 0.001705998689 | AD38: 0.0005070602401 | AE38: 0.03600457256
A39: メモ：この数字は自動では反映されません。 | E39: 35 | F39: 3.385808571 | G39: 43.29149296 | H39: 953.3226985 | I39: 1000 | J39: 5.533560012 | K39: 0.003889775127 | L39: 0.002362080148 | M39: 5.22300919 | N39: 0.003671475721 | O39: 0.002229517037 | P39: 0.003385808571 | Q39: 0.04667730153 | S39: 35 | T39: =MMULT(T38:V38,$AH$4:$AJ$6) -> 0.4056481921 | U39: 32.01367892 | V39: 967.5806729 | W39: 1000 | X39: 3.874093325 | Y39: 0.002701610592 | Z39: 0.001624346757 | AA39: 3.656674003 | AB39: 0.002549992576 | AC39: 0.001533186235 | AD39: 0.0004056481921 | AE39: 0.03241932711
E40: 36 | F40: 2.877937285 | G40: 39.30092452 | H40: 957.8211382 | I40: 1000 | J40: 5.003904671 | K40: 0.00351490515 | L40: 0.002132925901 | M40: 4.715291131 | N40: 0.003312173627 | O40: 0.002009903714 | P40: 0.002877937285 | Q40: 0.0421788618 | S40: 36 | T40: =MMULT(T39:V39,$AH$4:$AJ$6) -> 0.3245185537 | U40: 28.86504529 | V40: 970.8104362 | W40: 1000 | X40: 3.489766919 | Y40: 0.002432463654 | Z40: 0.001462182513 | AA40: 3.28848531 | AB40: 0.002292164829 | AC40: 0.00137784724 | AD40: 0.0003245185537 | AE40: 0.02918956384
E41: 37 | F41: 2.446246692 | G41: 35.6586258 | H41: 961.8951275 | I41: 1000 | J41: 4.523659765 | K41: 0.003175406041 | L41: 0.001925629014 | M41: 4.255716968 | N41: 0.002987322228 | O41: 0.00181157127 | P41: 0.002446246692 | Q41: 0.03810487249 | S41: 37 | T41: =MMULT(T40:V40,$AH$4:$AJ$6) -> 0.2596148429 | U41: 26.02072817 | V41: 973.719657 | W41: 1000 | X41: 3.143256568 | Y41: 0.002190028585 | Z41: 0.001316180608 | AA41: 2.957077014 | AB41: 0.002060310079 | AC41: 0.00123822136 | AD41: 0.0002596148429 | AE41: 0.02628034301
E42: 38 | F42: 2.079309688 | G42: 32.33738789 | H42: 965.5833024 | I42: 1000 | J42: 4.088417515 | K42: 0.002868058131 | L42: 0.001738162459 | M42: 3.839912807 | N42: 0.002693730058 | O42: 0.0016325124 | P42: 0.002079309688 | Q42: 0.03441669757 | S42: 38 | T42: =MMULT(T41:V41,$AH$4:$AJ$6) -> 0.2076918743 | U42: 23.45240528 | V42: 976.3399028 | W42: 1000 | X42: 2.830903984 | Y42: 0.001971674763 | Z42: 0.001184735624 | AA42: 2.658834237 | AB42: 0.001851831215 | AC42: 0.001112724294 | AD42: 0.0002076918743 | AE42: 0.02366009716
A43: メモ： | E43: 39 | F43: 1.767413235 | G43: 29.31158007 | H43: 968.9210067 | I43: 1000 | J43: 3.694130931 | K43: 0.002589916108 | L43: 0.001568678109 | M43: 3.463871128 | N43: 0.002428483397 | O43: 0.001470900439 | P43: 0.001767413235 | Q43: 0.0310789933 | S43: 39 | T43: =MMULT(T42:V42,$AH$4:$AJ$6) -> 0.1661534995 | U43: 21.1341647 | V43: 978.6996818 | W43: 1000 | X43: 2.549392044 | Y43: 0.001775026517 | Z43: 0.001066400522 | AA43: 2.390485248 | AB43: 0.001664386893 | AC43: 0.0009999304435 | AD43: 0.0001661534995 | AE43: 0.0213003182
A44: 演習ではシートのピンクのセルに値等を入力 | E44: 40 | F44: 1.50230125 | G44: 26.55716338 | H44: 971.9405354 | I44: 1000 | J44: 3.337089731 | K44: 0.002338288719 | L44: 0.001415492409 | M44: 3.123925336 | N44: 0.00218892507 | O44: 0.001325074527 | P44: 0.00150230125 | Q44: 0.02805946463 | S44: 40 | T44: =MMULT(T43:V43,$AH$4:$AJ$6) -> 0.1329227996 | U44: 19.04234818 | V44: 980.824729 | W44: 1000 | X44: 2.295715606 | Y44: 0.001597939249 | Z44: 0.0009598712392 | AA44: 2.149071414 | AB44: 0.00149586715 | AC44: 0.0008985572235 | AD44: 0.0001329227996 | AE44: 0.01917527098
A45: するようになっています。それ以外のセルは | E45: 41 | F45: 1.276956062 | G45: 24.05167717 | H45: 974.6713668 | I45: 1000 | J45: 3.013896867 | K45: 0.002110719436 | L45: 0.001277072962 | M45: 2.816725119 | N45: 0.00197263434 | O45: 0.001193525741 | P45: 0.001276956062 | Q45: 0.02532863323 | S45: 41 | T45: =MMULT(T44:V44,$AH$4:$AJ$6) -> 0.1063382397 | U45: 17.15539333 | V45: 982.7382684 | W45: 1000 | X45: 2.067154259 | Y45: 0.001438477631 | Z45: 0.0008639727305 | AA45: 1.931919234 | AB45: 0.001344371176 | AC45: 0.000807450885 | AD45: 0.0001063382397 | AE45: 0.01726173157
A46: 一部の例外を除き、保護してあります。 | E46: 42 | F46: 1.085412653 | G46: 21.77420506 | H46: 977.1403823 | I46: 1000 | J46: 2.721445872 | K46: 0.001904968143 | L46: 0.001152025991 | M46: 2.539212806 | N46: 0.001777407941 | O46: 0.001074884193 | P46: 0.001085412653 | Q46: 0.02285961771 | S46: 42 | T46: =MMULT(T45:V45,$AH$4:$AJ$6) -> 0.08507059173 | U46: 15.45367797 | V46: 984.4612514 | W46: 1000 | X46: 1.861247004 | Y46: 0.001294895713 | Z46: 0.0007776463496 | AA46: 1.73661445 | AB46: 0.001208187093 | AC46: 0.0007255737069 | AD46: 8.507059173e-05 | AE46: 0.01553874856
A47: パスワードは設定してありませんので、 | E47: 43 | F47: 0.9226007551 | G47: 19.70532582 | H47: 979.3720734 | I47: 1000 | J47: 2.456899174 | K47: 0.001718993881 | L47: 0.001039084668 | M47: 2.288600835 | N47: 0.001601242279 | O47: 0.0009679070534 | P47: 0.0009226007551 | Q47: 0.02062792657 | S47: 43 | T47: =MMULT(T46:V46,$AH$4:$AJ$6) -> 0.06805647338 | U47: 13.91936935 | V47: 986.0125742 | W47: 1000 | X47: 1.67576884 | Y47: 0.001165618818 | Z47: 0.0006999384284 | AA47: 1.560978166 | AB47: 0.001085773576 | AC47: 0.0006519924338 | AD47: 6.805647338e-05 | AE47: 0.01398742582
A48: 必要な場合は「シートの保護」を解除してください。 | E48: 44 | F48: 0.7842106418 | G48: 17.82705331 | H48: 981.388736 | I48: 1000 | J48: 2.217667462 | K48: 0.001550938663 | L48: 0.0009370982864 | M48: 2.062350429 | N48: 0.001442316791 | O48: 0.0008714674702 | P48: 0.0007842106418 | Q48: 0.01861126395 | S48: 44 | T48: =MMULT(T47:V47,$AH$4:$AJ$6) -> 0.05444517871 | U48: 12.53627975 | V48: 987.4092751 | W48: 1000 | X48: 1.508709185 | Y48: 0.001049227078 | Z48: 0.0006299899565 | AA48: 1.403044905 | AB48: 0.0009757431856 | AC48: 0.0005858678451 | AD48: 5.444517871e-05 | AE48: 0.01259072493
E49: 45 | F49: 0.6665790456 | G49: 16.12276905 | H49: 983.2106519 | I49: 1000 | J49: 2.00139019 | K49: 0.001399112341 | L49: 0.0008450222299 | M49: 1.85815151 | N49: 0.001298978441 | O49: 0.0007845443334 | P49: 0.0006665790456 | Q49: 0.01678934809 | S49: 45 | T49: =MMULT(T48:V48,$AH$4:$AJ$6) -> 0.04355614297 | U49: 11.28972965 | V49: 988.6667142 | W49: 1000 | X49: 1.35825205 | Y49: 0.000944440483 | Z49: 0.0005670272576 | AA49: 1.261042504 | AB49: 0.0008768472626 | AC49: 0.000526445348 | AD49: 4.355614297e-05 | AE49: 0.0113332858
E50: 46 | F50: 0.5665921887 | G50: 14.57715005 | H50: 984.8562578 | I50: 1000 | J50: 1.805917224 | K50: 0.001261978519 | L50: 0.0007619087133 | M50: 1.673903876 | N50: 0.001169727332 | O50: 0.0007062128493 | P50: 0.0005665921887 | Q50: 0.01514374223 | S50: 46 | T50: =MMULT(T49:V49,$AH$4:$AJ$6) -> 0.03484491437 | U50: 10.16641899 | V50: 989.7987361 | W50: 1000 | X50: 1.222757871 | Y50: 0.000850105325 | Z50: 0.0005103535693 | AA50: 1.13337373 | AB50: 0.0007879622498 | AC50: 0.0004730464976 | AD50: 3.484491437e-05 | AE50: 0.0102012639
E51: 47 | F51: 0.4816033604 | G51: 13.17609426 | H51: 986.3423024 | I51: 1000 | J51: 1.629291647 | K51: 0.001138141468 | L51: 0.0006868982423 | M51: 1.507699619 | N51: 0.001053203373 | O51: 0.0006356358727 | P51: 0.0004816033604 | Q51: 0.01365769762 | S51: 47 | T51: =MMULT(T50:V50,$AH$4:$AJ$6) -> 0.0278759315 | U51: 9.154306926 | V51: 990.8178171 | W51: 1000 | X51: 1.100746906 | Y51: 0.0007651819048 | Z51: 0.0004593414423 | AA51: 1.01859952 | AB51: 0.0007080773219 | AC51: 0.0004250613563 | AD51: 2.78759315e-05 | AE51: 0.009182182858
E52: 48 | F52: 0.4093628563 | G52: 11.90664517 | H52: 987.683992 | I52: 1000 | J52: 1.469733706 | K52: 0.001026334002 | L52: 0.0006192117584 | M52: 1.357806762 | N52: 0.0009481739735 | O52: 0.0005720559508 | P52: 0.0004093628563 | Q52: 0.01231600803 | S52: 48 | T52: =MMULT(T51:V51,$AH$4:$AJ$6) -> 0.0223007452 | U52: 8.242500105 | V52: 991.7351992 | W52: 1000 | X52: 0.9908840722 | Y52: 0.0006887334042 | Z52: 0.000413425882 | AA52: 0.9154237178 | AB52: 0.0006362832052 | AC52: 0.0003819416101 | AD52: 2.23007452e-05 | AE52: 0.00826480085
E53: 49 | F53: 0.3479584279 | G53: 10.75691694 | H53: 988.8951246 | I53: 1000 | J53: 1.325625875 | K53: 0.0009254062805 | L53: 0.0005581434219 | M53: 1.222654089 | N53: 0.0008535226973 | O53: 0.0005147880331 | P53: 0.0003479584279 | Q53: 0.01110487537 | S53: 49 | T53: =MMULT(T52:V52,$AH$4:$AJ$6) -> 0.01784059616 | U53: 7.421149191 | V53: 992.5610102 | W53: 1000 | X53: 0.8919651506 | Y53: 0.0006199158156 | Z53: 0.000372098161 | AA53: 0.822679203 | AB53: 0.0005717620792 | AC53: 0.0003431943707 | AD53: 1.784059616e-05 | AE53: 0.007438989787
E54: 50 | F54: 0.2957646637 | G54: 9.716021087 | H54: 989.9882142 | I54: 1000 | J54: 1.195498997 | K54: 0.0008343154792 | L54: 0.0005030539931 | M54: 1.100817099 | N54: 0.0007682388261 | O54: 0.0004632127998 | P54: 0.0002957646637 | Q54: 0.01001178575 | S54: 50 | T54: =MMULT(T53:V53,$AH$4:$AJ$6) -> 0.01427247693 | U54: 6.68135355 | V54: 993.304374 | W54: 1000 | X54: 0.8029042241 | Y54: 0.0005579688355 | Z54: 0.0003349002386 | AA54: 0.7393152997 | AB54: 0.0005137784613 | AC54: 0.0003083765944 | AD54: 1.427247693e-05 | AE54: 0.006695626026
E55: 51 | F55: 0.2513999642 | G55: 8.773995445 | H55: 990.9746046 | I55: 1000 | J55: 1.07801945 | K55: 0.0007521162841 | L55: 0.0004533647702 | M55: 0.9910050476 | N55: 0.0006914077794 | O55: 0.0004167705654 | P55: 0.0002513999642 | Q55: 0.009025395409 | S55: 51 | T55: =MMULT(T54:V54,$AH$4:$AJ$6) -> 0.01141798154 | U55: 6.015073617 | V55: 993.9735084 | W55: 1000 | X55: 0.7227222725 | Y55: 0.0005022076332 | Z55: 0.0003014197298 | AA55: 0.6643863617 | AB55: 0.0004616709833 | AC55: 0.0002770900596 | AD55: 1.141798154e-05 | AE55: 0.006026491598
E56: 52 | F56: 0.2136899695 | G56: 7.921735897 | H56: 991.8645741 | I56: 1000 | J56: 0.9719773046 | K56: 0.0006779521555 | L56: 0.0004085520431 | M56: 0.8920490056 | N56: 0.0006222023326 | O56: 0.0003749557135 | P56: 0.0002136899695 | Q56: 0.008135425866 | S56: 52 | T56: =MMULT(T55:V55,$AH$4:$AJ$6) -> 0.009134385233 | U56: 5.415050593 | V56: 994.575815 | W56: 1000 | X56: 0.6505368219 | Y56: 0.0004520154148 | Z56: 0.0002712853688 | AA56: 0.5970414354 | AB56: 0.0004148449757 | AC56: 0.0002489768457 | AD56: 9.134385233e-06 | AE56: 0.005424184978
E57: 53 | F57: 0.1816364741 | G57: 7.150931304 | H57: 992.6674322 | I57: 1000 | J57: 0.8762754039 | K57: 0.0006110473148 | L57: 0.0003681420262 | M57: 0.8028908891 | N57: 0.0005598745779 | O57: 0.0003373116231 | P57: 0.0001816364741 | Q57: 0.007332567778 | S57: 53 | T57: =MMULT(T56:V56,$AH$4:$AJ$6) -> 0.007307508187 | U57: 4.874733003 | V57: 995.1179595 | W57: 1000 | X57: 0.5855525611 | Y57: 0.0004068367093 | Z57: 0.0002441629215 | AA57: 0.5365149065 | AB57: 0.0003727657832 | AC57: 0.000223715266 | AD57: 7.307508187e-06 | AE57: 0.004882040512
E58: 54 | F58: 0.154391003 | G58: 6.454001821 | H58: 993.3916072 | I58: 1000 | J58: 0.7899193188 | K58: 0.000550699402 | L58: 0.0003317062329 | M58: 0.7225733876 | N58: 0.0005037485766 | O58: 0.000303426047 | P58: 0.000154391003 | Q58: 0.006608392824 | S58: 54 | T58: =MMULT(T57:V57,$AH$4:$AJ$6) -> 0.005846006549 | U58: 4.388209679 | V58: 995.6059443 | W58: 1000 | X58: 0.527052842 | Y58: 0.0003661713071 | Z58: 0.000219751501 | AA58: 0.4821180447 | AB58: 0.000334952742 | AC58: 0.0002010162085 | AD58: 5.846006549e-06 | AE58: 0.004394055686
E59: 55 | F59: 0.1312323525 | G59: 5.824040739 | H59: 994.0447269 | I59: 1000 | J59: 0.712008124 | K59: 0.0004962727577 | L59: 0.0002988572575 | M59: 0.6502307368 | N59: 0.0004532136503 | O59: 0.0002729269066 | P59: 0.0001312323525 | Q59: 0.005955273092 | S59: 55 | T59: =MMULT(T58:V58,$AH$4:$AJ$6) -> 0.004676805239 | U59: 3.950148692 | V59: 996.0451745 | W59: 1000 | X59: 0.4743919875 | Y59: 0.0003295687914 | Z59: 0.0001977802482 | AA59: 0.4332313652 | AB59: 0.0003009737542 | AC59: 0.0001806198444 | AD59: 4.676805239e-06 | AE59: 0.003954825497
E60: 56 | F60: 0.1115474997 | G60: 5.254759901 | H60: 994.6336926 | I60: 1000 | J60: 0.641725938 | K60: 0.0004471922834 | L60: 0.0002692449325 | M60: 0.5850802773 | N60: 0.0004077182636 | O60: 0.0002454784674 | P60: 0.0001115474997 | Q60: 0.0053663074 | S60: 56 | T60: =MMULT(T59:V59,$AH$4:$AJ$6) -> 0.003741444192 | U60: 3.555741807 | V60: 996.4405167 | W60: 1000 | X60: 0.4269883324 | Y60: 0.0002966236043 | Z60: 0.0001780053413 | AA60: 0.3892977316 | AB60: 0.000270440402 | AC60: 0.0001622926677 | AD60: 3.741444192e-06 | AE60: 0.003559483252
E61: 57 | F61: 0.09481537471 | G61: 4.74043866 | H61: 995.164746 | I61: 1000 | J61: 0.5783341767 | K61: 0.0004029378363 | L61: 0.0002425528299 | M61: 0.5264147407 | N61: 0.0003667644506 | O61: 0.0002207778654 | P61: 9.481537471e-05 | Q61: 0.004835254035 | S61: 57 | T61: =MMULT(T60:V60,$AH$4:$AJ$6) -> 0.002993155353 | U61: 3.200654014 | V61: 996.7963528 | W61: 1000 | X61: 0.3843179342 | Y61: 0.0002669705975 | Z61: 0.0001602073015 | AA61: 0.3498161336 | AB61: 0.0002430035497 | AC61: 0.0001458248335 | AD61: 2.993155353e-06 | AE61: 0.00320364717
E62: 58 | F62: 0.0805930685 | G62: 4.275876332 | H62: 995.6435306 | I62: 1000 | J62: 0.5211644667 | K62: 0.0003630391167 | L62: 0.0002184950789 | M62: 0.4735952095 | N62: 0.0003299027419 | O62: 0.000198551953 | P62: 8.05930685e-05 | Q62: 0.0043564694 | S62: 58 | T62: =MMULT(T61:V61,$AH$4:$AJ$6) -> 0.002394524283 | U62: 2.880977723 | V62: 997.1166278 | W62: 1000 | X62: 0.3459088887 | Y62: 0.0002402810206 | Z62: 0.0001441885667 | AA62: 0.3143360745 | AB62: 0.0002183493841 | AC62: 0.0001310277635 | AD62: 2.394524283e-06 | AE62: 0.002883372248
E63: 59 | F63: 0.06850410823 | G63: 3.856348006 | H63: 996.0751479 | I63: 1000 | J63: 0.4696121715 | K63: 0.0003270710095 | L63: 0.0001968134733 | M63: 0.4260446996 | N63: 0.0002967275519 | O63: 0.0001785544374 | P63: 6.850410823e-05 | Q63: 0.003924852114 | S63: 59 | T63: =MMULT(T62:V62,$AH$4:$AJ$6) -> 0.001915619426 | U63: 2.593191239 | V63: 997.4048931 | W63: 1000 | X63: 0.3113361982 | Y63: 0.0002162589049 | Z63: 0.0001297713064 | AA63: 0.2824525111 | AB63: 0.0001961958522 | AC63: 0.0001177319938 | AD63: 1.915619426e-06 | AE63: 0.002595106858
E64: 60 | F64: 0.05822849199 | G64: 3.477563616 | H64: 996.4642079 | I64: 1000 | J64: =IF(半周期補正="Y",0.5,1)*(F64*費用A_PF+G64*費用A_P)/I64 -> 0.4231304831 | K64: =IF(半周期補正="Y", 0.5, 1)*(F64+G64)/I64/12 -> 0.0002946493423 | L64: =IF(半周期補正="Y", 0.5, 1)*(F64*効用_PF+G64*効用_P)/I64/12 -> 0.0001772748428 | M64: 0.3832423151 | N64: 0.0002668729874 | O64: 0.000160563287 | P64: 5.822849199e-05 | Q64: 0.003535792108 | S64: 60 | T64: =MMULT(T63:V63,$AH$4:$AJ$6) -> 0.001532495541 | U64: 2.334121146 | V64: 997.6643464 | W64: 1000 | X64: =IF(半周期補正="Y", 0.5, 1)*(T64*費用B_PF+U64*費用B_P)/W64 -> 0.2802171371 | Y64: =IF(半周期補正="Y", 0.5, 1)*(T64+U64)/W64/12 -> 0.0001946378034 | Z64: =IF(半周期補正="Y", 0.5, 1)*(T64*効用_PF+U64*効用_P)/W64/12 -> 0.0001167954529 | AA64: 0.2538012945 | AB64: 0.0001762894553 | AC64: 0.0001057852401 | AD64: 1.532495541e-06 | AE64: 0.002335653641
E65: 合計 | F65: - | G65: - | H65: - | I65: - | J65: =SUM(J3:J64) -> 1362.831319 | K65: 1.025109759 | L65: 0.662285328 | M65: 1336.794897 | N65: 1.006172255 | O65: 0.6504088321 | P65: - | Q65: - | S65: 合計 | T65: - | U65: - | V65: - | W65: - | X65: =SUM(X3:X64) -> 1097.477463 | Y65: 0.8732480682 | Z65: 0.5572821232 | AA65: 1077.430776 | AB65: 0.8584167449 | AC65: 0.5481103253
J66: Cost (千円/人) | K66: LYs (年/人) | L66: QALYs (年/人) | M66: Cost (千円/人) | N66: LYs (年/人) | O66: QALYs (年/人) | X66: Cost (千円/人) | Y66: LYs (年/人) | Z66: QALYs (年/人) | AA66: Cost (千円/人) | AB66: LYs (年/人) | AC66: QALYs (年/人)
J67: 割引なし | M67: 割引あり | X67: 割引なし | AA67: 割引あり

Sheet Graph
A1: コホート推移（横軸：サイクル＝月、縦軸：1000人で開始したときの各サイクル開始時のstateごとの人数）
A18: 生存曲線（横軸：サイクル＝月、縦軸：進行せず生存している割合（progression-free survival）、全生存割合（overall survival））

Sheet Output
A1: 基本分析の結果
B2: 割引なし | E2: 割引あり | F2: 年率 | G2: =(1+基本分析!C25)^12-1 -> 0.02
B3: Treatment A | C3: Treatment B | D3: 増分 | E3: Treatment A | F3: Treatment B | G3: 増分
A4: Cost（千円） | B4: =基本分析!J65 -> 1362.831319 | C4: =基本分析!X65 -> 1097.477463 | D4: =B4-C4 -> 265.3538556 | E4: =基本分析!M65 -> 1336.794897 | F4: =基本分析!AA65 -> 1077.430776 | G4: =E4-F4 -> 259.364121
A5: LYs | B5: =基本分析!K65 -> 1.025109759 | C5: =基本分析!Y65 -> 0.8732480682 | D5: =B5-C5 -> 0.1518616909 | E5: =基本分析!N65 -> 1.006172255 | F5: =基本分析!AB65 -> 0.8584167449 | G5: =E5-F5 -> 0.1477555102
A6: QALYs | B6: =基本分析!L65 -> 0.662285328 | C6: =基本分析!Z65 -> 0.5572821232 | D6: =B6-C6 -> 0.1050032048 | E6: =基本分析!O65 -> 0.6504088321 | F6: =基本分析!AC65 -> 0.5481103253 | G6: =E6-F6 -> 0.1022985068
A7: ICER for QALYs（千円） | D7: =D4/D6 -> 2527.102444 | G7: =G4/G6 -> 2535.365657
A10: A vs B
A11: Inc QALY | B11: 0 | C11: =D6 -> 0.1050032048
A12: Inc Cost | B12: 0 | C12: =D4 -> 265.3538556
A14: ICER threshold of JPN 5,000 K
A15: Inc QALY | B15: -0.2 | C15: 0 | D15: 1
A16: Inc Cost | B16: -1000 | C16: 0 | D16: 5000
A18: ICER threshold of JPN 10,000 K
A19: Inc QALY | B19: -0.2 | C19: 0 | D19: 1
A20: Inc Cost | B20: -2000 | C20: 0 | D20: 10000
A22: B
A23: Inc QALY | B23: 0
A24: Inc Cost | B24: 0

Sheet 一元感度分析
A1: 一元感度分析 | B1: メモ：都合によりこのシートは保護しておりません。入力等が必要な個所は下表のピンクのセルのみです。
A2: パラメータ | B2: 基本分析 | C2: 下限 | D2: 上限 | E2: 下限でのICER （千円） | F2: 差 | G2: 上限での ICER （千円）
A3: 推移確率：PF→P（Treatment A） | B3: =確率A_PFtoP -> 0.1 | E3: =$C$70 ->  | F3: =ABS(G3-E3) ->  | G3: =$D$70 -> 
A4: 推移確率：PF→P（Treatment B） | B4: =確率B_PFtoP -> 0.13 | E4: =$E$70 ->  | F4: =ABS(E4-G4) ->  | G4: =$F$70 -> 
A5: 費用：PF state (Treatment A) | B5: =費用A_PF -> 100 | E5: =$G$70 ->  | F5: =ABS(E5-G5) ->  | G5: =$H$70 -> 
A6: 費用：PF state (Treatment B) | B6: =費用B_PF -> 80 | E6: =$I$70 ->  | F6: =ABS(G6-E6) ->  | G6: =$J$70 -> 
A7: 費用：P state (Treatment A, B) | B7: =費用A_P -> 120 | E7: =$K$70 ->  | F7: =ABS(G7-E7) ->  | G7: =$L$70 ->  | K7: ①パラメータの下限値と上限値を設定（計算式ではなく値で設定してください）
A8: 効用値：PF state (Treatment A, B) | B8: =効用_PF -> 0.7 | E8: =$M$70 ->  | F8: =ABS(G8-E8) ->  | G8: =$N$70 ->  | K8: ②マクロを実行し、ICERを算出（基本分析シートの計算式を利用）
A9: 効用値：P state (Treatment A, B) | B9: =効用_P -> 0.6 | E9: =$O$70 ->  | F9: =ABS(G9-E9) ->  | G9: =$P$70 ->  | I9: メモ：計算結果をクリアします。
H11: 9
D12: =(1+D11)^12 -> 1
A16: パラメータ | B16: 基本分析 | C16: 下限 | D16: 上限 | E16: 下限でのICER | F16: 差 | G16: 上限でのICER | K16: メモ：テキストの数値を置いてあります。適宜ご利用ください。
K17: 下限 | L17: 上限
K18: 0.08 | L18: 0.12
K19: 0.104 | L19: 0.156
K20: 80 | L20: 120
K21: 64 | L21: 96
K22: 96 | L22: 144
K23: 0.56 | L23: 0.84
K24: 0.48 | L24: 0.72
H29: メモ：グラフの下にグラフ用の数値表があります。
A33: パラメータ | B33: 基本分析 | C33: 推移確率：PF→P（A） | E33: 推移確率：PF→P（B) | G33: 費用：PF(A) | I33: 費用：PF(B) | K33: 費用：P(A, B) | M33: 効用値：PF | O33: 効用値：P
B34: 0 | C34: 1 | D34: 2 | E34: 3 | F34: 4 | G34: 5 | H34: 6 | I34: 7 | J34: 8 | K34: 9 | L34: 10 | M34: 13 | N34: 14 | O34: 15 | P34: 16
A35: 推移確率：PF→PF（Treatment A） | C35: =1-C36-C37 -> 1 | D35: =1-D36-D37 -> 1 | E35: =$B35 -> 0 | F35: 0 | G35: 0 | H35: 0 | I35: 0 | J35: 0 | K35: 0 | L35: 0 | M35: 0 | N35: 0 | O35: 0 | P35: 0
A36: 推移確率：PF→P（Treatment A） | C36: =C3 -> 0 | D36: =D3 -> 0 | E36: =$B36 -> 0 | F36: 0 | G36: 0 | H36: 0 | I36: 0 | J36: 0 | K36: 0 | L36: 0 | M36: 0 | N36: 0 | O36: 0 | P36: 0
A37: 推移確率：PF→D（Treatment A） | C37: =$B37 -> 0 | D37: 0 | E37: 0 | F37: 0 | G37: 0 | H37: 0 | I37: 0 | J37: 0 | K37: 0 | L37: 0 | M37: 0 | N37: 0 | O37: 0 | P37: 0
A38: 推移確率：P→P（Treatment A） | C38: 0 | D38: 0 | E38: 0 | F38: 0 | G38: 0 | H38: 0 | I38: 0 | J38: 0 | K38: 0 | L38: 0 | M38: 0 | N38: 0 | O38: 0 | P38: 0
A39: 推移確率：P→D（Treatment A） | C39: 0 | D39: 0 | E39: 0 | F39: 0 | G39: 0 | H39: 0 | I39: 0 | J39: 0 | K39: 0 | L39: 0 | M39: 0 | N39: 0 | O39: 0 | P39: 0
A40: 推移確率：D→D（Treatment A） | C40: 0 | D40: 0 | E40: 0 | F40: 0 | G40: 0 | H40: 0 | I40: 0 | J40: 0 | K40: 0 | L40: 0 | M40: 0 | N40: 0 | O40: 0 | P40: 0
A41: 推移確率：PF→PF（Treatment B) | C41: 0 | D41: 0 | E41: =1-E42-E43 -> 1 | F41: =1-F42-F43 -> 1 | G41: 0 | H41: 0 | I41: 0 | J41: 0 | K41: 0 | L41: 0 | M41: 0 | N41: 0 | O41: 0 | P41: 0
A42: 推移確率：PF→P（Treatment B) | C42: =$B42 -> 0 | D42: 0 | E42: =C4 -> 0 | F42: =D4 -> 0 | G42: 0 | H42: 0 | I42: 0 | J42: 0 | K42: 0 | L42: 0 | M42: 0 | N42: 0 | O42: 0 | P42: 0
A43: 推移確率：PF→D（Treatment B) | C43: 0 | D43: 0 | E43: 0 | F43: 0 | G43: 0 | H43: 0 | I43: 0 | J43: 0 | K43: 0 | L43: 0 | M43: 0 | N43: 0 | O43: 0 | P43: 0
A44: 推移確率：P→P（Treatment B) | C44: 0 | D44: 0 | E44: 0 | F44: 0 | G44: 0 | H44: 0 | I44: 0 | J44: 0 | K44: 0 | L44: 0 | M44: 0 | N44: 0 | O44: 0 | P44: 0
A45: 推移確率：P→D（Treatment B) | C45: 0 | D45: 0 | E45: 0 | F45: 0 | G45: 0 | H45: 0 | I45: 0 | J45: 0 | K45: 0 | L45: 0 | M45: 0 | N45: 0 | O45: 0 | P45: 0
A46: 推移確率：D→D（Treatment B) | C46: 0 | D46: 0 | E46: 0 | F46: 0 | G46: 0 | H46: 0 | I46: 0 | J46: 0 | K46: 0 | L46: 0 | M46: 0 | N46: 0 | O46: 0 | P46: 0
A48: 費用：PF state (Treatment A) | C48: 0 | D48: 0 | E48: 0 | F48: 0 | G48: =C5 -> 0 | H48: =D5 -> 0 | I48: 0 | J48: 0 | K48: 0 | L48: 0 | M48: 0 | N48: 0 | O48: 0 | P48: 0
A49: 費用：P state (Treatment A) | C49: =$B49 -> 0 | D49: 0 | E49: 0 | F49: 0 | G49: 0 | H49: 0 | I49: 0 | J49: 0 | K49: =C7 -> 0 | L49: =D7 -> 0 | M49: =$B49 -> 0 | N49: =$B49 -> 0 | O49: =$B49 -> 0 | P49: =$B49 -> 0
A50: 費用：PF state (Treatment B) | C50: 0 | D50: 0 | E50: 0 | F50: 0 | G50: 0 | H50: 0 | I50: =C6 -> 0 | J50: =D6 -> 0 | K50: 0 | L50: 0 | M50: 0 | N50: 0 | O50: 0 | P50: 0
A51: 費用：P state (Treatment B) | C51: 0 | D51: 0 | E51: 0 | F51: 0 | G51: 0 | H51: 0 | I51: 0 | J51: 0 | K51: =K49 -> 0 | L51: =L49 -> 0 | M51: =$B51 -> 0 | N51: 0 | O51: 0 | P51: 0
A53: 効用値：PF state (Treatment A, B) | C53: 0 | D53: 0 | E53: 0 | F53: 0 | G53: 0 | H53: 0 | I53: 0 | J53: 0 | K53: 0 | L53: 0 | M53: =C8 -> 0 | N53: =D8 -> 0 | O53: 0 | P53: 0
A54: 効用値：P state (Treatment A, B) | C54: 0 | D54: 0 | E54: 0 | F54: 0 | G54: 0 | H54: 0 | I54: 0 | J54: 0 | K54: 0 | L54: 0 | M54: 0 | N54: 0 | O54: =C9 -> 0 | P54: =D9 -> 0
A55: 効用値：D state (Treatment A, B) | C55: 0 | D55: 0 | E55: 0 | F55: 0 | G55: 0 | H55: 0 | I55: 0 | J55: 0 | K55: 0 | L55: 0 | M55: 0 | N55: 0 | O55: 0 | P55: 0
A57: 割引率（discount rate）（月） | C57: 0 | D57: 0 | E57: 0 | F57: 0 | G57: 0 | H57: 0 | I57: 0 | J57: 0 | K57: 0 | L57: 0 | M57: 0 | N57: 0 | O57: 0 | P57: 0
A59: Cost(千円) (Treatment A)
A60: LYs (Treatment A)
A61: QALYs (Treatment A)
A62: Cost(千円) (Treatment B)
A63: LYs (Treatment B)
A64: QALYs (Treatment B)
A66: 増分Cost（千円） | B66: =B59-B62 -> 0 | C66: =C59-C62 -> 0 | D66: 0 | E66: 0 | F66: 0 | G66: 0 | H66: 0 | I66: 0 | J66: 0 | K66: 0 | L66: 0 | M66: 0 | N66: 0 | O66: 0 | P66: 0
A67: 増分Lys | B67: =B60-B63 -> 0 | C67: =C60-C63 -> 0 | D67: 0 | E67: 0 | F67: 0 | G67: 0 | H67: 0 | I67: 0 | J67: 0 | K67: 0 | L67: 0 | M67: 0 | N67: 0 | O67: 0 | P67: 0
A68: 増分QALYs | B68: =B61-B64 -> 0 | C68: =C61-C64 -> 0 | D68: 0 | E68: 0 | F68: 0 | G68: 0 | H68: 0 | I68: 0 | J68: 0 | K68: 0 | L68: 0 | M68: 0 | N68: 0 | O68: 0 | P68: 0
A69: ICER for LYs（千円） | B69: =B66/B67 ->  | C69: =C66/C67 -> 
A70: ICER for QALYs（千円） | B70: =B66/B68 ->  | C70: =C66/C68 -> 
B71: メモ：薄黄色のパラメータ値が感度分析の対象です。この列は基本分析の設定値です。
C72: メモ：薄黄色のセルの値を変更して、費用、QLAYｓ、ICER等を計算します。太字のセルが上の表で指定した値、イタリックのセルは太字のセルの値に連動して変更した値です。
C73: メモ：右側が設定した下限値、左側が上限値で、別々に計算します。
A74: メモ：半周期補正の有無は基本分析シートの設定に従います

Sheet 確率感度分析
A1: 確率感度分析 | AW1: メモ：テキストの数値を置いてあります。適宜ご利用ください。
H2: 推移確率（transition probabilities） | K2: 確率分布 | L2: パラメータ1 | M2: パラメータ2 | N2: 平均値 | O2: 95% 信頼区間 | AW2: 確率分布 | AX2: パラメータ1 | AY2: パラメータ2
H3: Treatment A | I3: PF→PF | J3: =確率A_PFまま -> 0.85
I4: PF→P | J4: =確率A_PFtoP -> 0.1 | K4: β分布 | L4: 10 | M4: 90 | N4: =L4/(L4+M4) -> 0.1 | O4: =_xlfn.BETA.INV(0.025,L4,M4) -> 0.04951087221 | P4: =_xlfn.BETA.INV(1-0.025,L4,M4) -> 0.1655689757 | T4: Cost | V4: QALY | AW4: β分布 | AX4: 10 | AY4: 90
I5: PF→D | J5: =確率A_PFtoD -> 0.05 | S5: 最小値 | T5: =MIN(T34:T533) -> 0 | V5: =MIN(V34:V533) -> 0
I6: P→P | J6: =確率A_Pまま -> 0.9 | L6: メモ：平均値＝パラメータ1÷（パラメータ1+パラメータ2） | S6: 最大値 | T6: =MAX(T34:T533) -> 0 | V6: =MAX(V34:V533) -> 0 | AX6: メモ：平均値＝パラメータ1÷（パラメータ1+パラメータ2）
I7: P→D | J7: =確率A_PtoD -> 0.1 | L7: メモ：パラメータ値を大きくすると、信頼区間は狭まる | AX7: メモ：パラメータ値を大きくすると、信頼区間は狭まる
I8: D→D | J8: =確率A_Dまま -> 1 | T8: =V8*T22*1000 ->  | V8: =MIN(MAX(V5,T5/(T22*1000)),-0.01) -> 
H9: Treatment B | I9: PF→PF | J9: =確率B_PFまま -> 0.8 | T9: 0 | V9: 0
I10: PF→P | J10: =確率B_PFtoP -> 0.13 | K10: β分布 | L10: 13 | M10: 87 | N10: =L10/(L10+M10) -> 0.13 | O10: =_xlfn.BETA.INV(0.025, L10,M10) -> 0.07181093202 | P10: =_xlfn.BETA.INV(1-0.025, L10,M10) -> 0.2021626031 | T10: =V10*T22*1000 ->  | V10: =MAX(MIN(V6,T6/(T22*1000)),0.01) ->  | AW10: β分布 | AX10: 13 | AY10: 87
I11: PF→D | J11: =確率B_PFtoD -> 0.07
I12: P→P | J12: =確率B_Pまま -> 0.9 | V12: =T6/(T22*1000) -> 
I13: P→D | J13: =確率B_PtoD -> 0.1 | X13: ICER 12番目
I14: D→D | J14: =確率B_Dまま -> 1 | T14: =IF(T22="","",V14*X14) ->  | V14: =IF(T22="","",IFV8) ->  | X14: =_xlfn.PERCENTILE.INC(X34:X533,12/499) -> 
H15: 費用（cost） | T15: =IF(T22="","",V15*X14) ->  | V15: =IF(T22="","",V10) -> 
H16: Treatment A | I16: PF state | J16: =費用A_PF -> 100 | K16: 正規分布 | L16: 100 | M16: 20 | N16: =L16 -> 100 | O16: =_xlfn.NORM.INV(0.025,L16,M16) -> 60.80072031 | P16: =_xlfn.NORM.INV(1-0.025,L16,M16) -> 139.1992797 | AW16: 正規分布 | AX16: 100 | AY16: 20
I17: P state | J17: =費用A_P -> 120 | L17: メモ：パラメータ1は平均値、パラメータ2は標準偏差 | X17: ICER 487番目 | AX17: メモ：パラメータ1は平均値、パラメータ2は標準偏差
H18: Treatment B | I18: PF state | J18: =費用B_PF -> 80 | K18: 正規分布 | L18: 80 | M18: 20 | N18: =L18 -> 80 | O18: =_xlfn.NORM.INV(0.025,L18,M18) -> 40.80072031 | P18: =_xlfn.NORM.INV(1-0.025,L18,M18) -> 119.1992797 | T18: =IF(T22="","",V18*X18) ->  | V18: =IF(T22="","",V8) ->  | X18: =_xlfn.PERCENTILE.INC(X34:X533,487/499) ->  | AW18: 正規分布 | AX18: 80 | AY18: 20
I19: P state | J19: =費用B_P -> 120 | T19: =IF(T22="","",V19*X18) ->  | V19: =IF(T22="","",MAX(MIN(V6,T6/X18),0.01)) -> 
H20: 効用値（utility）
H21: Treatment A, B | I21: PF state | J21: =効用_PF -> 0.7 | K21: β分布 | L21: 70 | M21: 30 | N21: =L21/(L21+M21) -> 0.7 | O21: =_xlfn.BETA.INV(0.025, L21,M21) -> 0.607091273 | P21: =_xlfn.BETA.INV(1-0.025, L21,M21) -> 0.785332007 | AW21: β分布 | AX21: 70 | AY21: 30
I22: P state | J22: =効用_P -> 0.6 | K22: β分布 | L22: 60 | M22: 40 | N22: =L22/(L22+M22) -> 0.6 | O22: =_xlfn.BETA.INV(0.025, L22,M22) -> 0.5027824861 | P22: =_xlfn.BETA.INV(1-0.025, L22,M22) -> 0.6934274705 | S22: 参照ICER（百万円/QALYs） | W22: =IF(ISNUMBER(T22),"参照線より下にある点の数","") ->  | X22: =IF(ISNUMBER(T22),SUM(AU34:AU533),"") ->  | Z22: 優位・劣位となった回数/割合 | AW22: β分布 | AX22: 60 | AY22: 40
I23: D state | J23: =効用_D -> 0 | Q23: ヒント：参照するICERを任意に入力。 | W23: =IF(ISNUMBER(T22),"参照線より上にある点の数","") ->  | X23: =IF(ISNUMBER(T22),COUNTIF(AU34:AU533,"=0"),"") ->  | Z23: 劣位（dominated） | AC23: 増 | AD23: 費用効果とも増加
H24: 割引（discount） | W24: =IF(ISNUMBER(T22),"参照線より下の点の割合","") ->  | X24: =IF(ISNUMBER(T22),X22/(X22+X23),"") ->  | Z24: =COUNTIF(Y34:Y533,"劣位") -> 0 | AA24: =Z24/SUM(Z24,Z26,AD24,AD26) ->  | AC24: 分 | AD24: =IF(ISBLANK(N34),"0", COUNTIF(Y34:Y533,"")) -> 0 | AE24: =AD24/SUM(Z24,Z26,AD24,AD26) -> 
H25: 割引率（月） | J25: =割引率 -> 0.001651581302 | AC25: 費 | AF25: 増 分 Q A L Y s
H26: 半周期補正（half cycle correction） | O26: ①確率分布のパラメータを設定してください（ヒント：分布の平均値と信頼区間を確認） | Z26: =COUNTIF(Y34:Y533,"費用効果とも減") -> 0 | AA26: =Z26/SUM(Z24,Z26,AD24,AD26) ->  | AC26: 用 | AD26: =COUNTIF(Y34:Y533,"優位") -> 0 | AE26: =AD26/SUM(Z24,Z26,AD24,AD26) -> 
H27: 補正（Y：補正あり、N：補正なし） | J27: =半周期補正 -> N | O27: ②マクロを実行し、500回（数分かかります）の確率感度分析を行います（基本分析シートの計算式を利用） | Z27: 費用効果とも減少 | AD27: 優位（dominant）
H28: 乱数シード値 | M28: メモ：計算結果をクリアします。
H29: SEED | J29: 7854 | K29: メモ：乱数シード値を変えると別の乱数列（異なる結果）になります | W29: 中央値 | X29: =MEDIAN(X34:X533) -> 
H30: =AVERAGE(H34:H533) ->  | I30: =AVERAGE(I34:I533) ->  | J30: =AVERAGE(J34:J533) ->  | T30: 0 | U30: 0 | V30: 0 | W30: 平均値 | X30: =AVERAGE(X34:X533) -> 
A31: No | B31: 一様乱数 | H31: 推移確率 | J31: 費用 | L31: 効用値 | N31: Treatment A | Q31: Treatment B | T31: 増分 | W31: ICER for LYs （千円） | X31: ICER for QALYs （千円） | Y31: ICERが基準額を下回る確率を求める
H32: PF→P | J32: PF state | L32: PF state | M32: P state | N32: Cost (千円) | O32: LYs | P32: QALYs | Q32: Cost (千円) | R32: LYs | S32: QALYs | T32: Cost (千円) | U32: LYs | V32: QALYs | Z32: ICER基準額（百万円） | AU32: 参照
H33: Trt A | I33: Trt B | J33: Trt A | K33: Trt B | L33: Trt A, B | M33: Trt A, B | W33: ICER | X33: ICER | Z33: 0 | AA33: 1 | AB33: 2 | AC33: 3 | AD33: 4 | AE33: 5 | AF33: 6 | AG33: 7 | AH33: 8 | AI33: 9 | AJ33: 10 | AK33: 11 | AL33: 12 | AM33: 13 | AN33: 14 | AO33: 15 | AP33: 16 | AQ33: 17 | AR33: 18 | AS33: 19 | AT33: 20 | AU33: =T22 -> 0
A34: 1 | H34: =MIN(1-$J$5,BETAINV(F34,$L$4,$M$4)) ->  | I34: =MIN(1-$J$11,BETAINV(G34,$L$10,$M$10)) ->  | J34: =MAX(1, $L$16+$M$16*NORMSINV(D34)) ->  | K34: =MAX(1, $L$18+$M$18*NORMSINV(E34)) ->  | L34: =BETAINV(B34,$L$21,$M$21) ->  | M34: =BETAINV(C34,$L$22,$M$22) ->  | T34: =N34-Q34 -> 0 | U34: =O34-R34 -> 0 | V34: =P34-S34 -> 0 | W34: =T34/U34 ->  | X34: =T34/V34 ->  | Y34: =IF(AND(T34<0, V34>0), "優位", IF(AND(T34>0, V34<0), "劣位", IF(AND(T34<0, V34<0), "費用効果とも減", ""))) ->  | Z34: =IF($V34*Z$33*1000-$T34>=0,1,0) -> 1 | AA34: 1 | AB34: 1 | AC34: =IF($V34*AC$33*1000-$T34>=0,1,0) -> 1 | AD34: =IF($V34*AD$33*1000-$T34>=0,1,0) -> 1 | AE34: 1 | AF34: 1 | AG34: 1 | AH34: 1 | AI34: 1 | AJ34: 1 | AK34: 1 | AL34: 1 | AM34: 1 | AN34: 1 | AO34: 1 | AP34: 1 | AQ34: 1 | AR34: 1 | AS34: 1 | AT34: 1 | AU34: =IF($V34*AU$33*1000-$T34>=0,1,0) -> 1 | AW34: 0 | AY34: Treatment A | AZ34: Treatment B
A35: 2 | H35: =MIN(1-$J$5,BETAINV(F35,$L$4,$M$4)) ->  | I35: =MIN(1-$J$11,BETAINV(G35,$L$10,$M$10)) ->  | J35: =MAX(1, $L$16+$M$16*NORMSINV(D35)) ->  | K35: =MAX(1, $L$18+$M$18*NORMSINV(E35)) ->  | L35: =BETAINV(B35,$L$21,$M$21) ->  | M35: =BETAINV(C35,$L$22,$M$22) ->  | T35: =N35-Q35 -> 0 | U35: =O35-R35 -> 0 | V35: =P35-S35 -> 0 | W35: =T35/U35 ->  | X35: =T35/V35 ->  | Y35: =IF(AND(T35<0, V35>0), "優位", IF(AND(T35>0, V35<0), "劣位", IF(AND(T35<0, V35<0), "費用効果とも減", ""))) ->  | Z35: 1 | AA35: 1 | AB35: 1 | AC35: 1 | AD35: 1 | AE35: 1 | AF35: 1 | AG35: 1 | AH35: 1 | AI35: 1 | AJ35: 1 | AK35: 1 | AL35: 1 | AM35: 1 | AN35: 1 | AO35: 1 | AP35: 1 | AQ35: 1 | AR35: 1 | AS35: 1 | AT35: 1 | AU35: 1 | AW35: 0.05 | AX35: =AW34&" to "&AW35 -> 0 to 0.05 | AY35: =FREQUENCY(H34:H533,AW35:AW54) ->  | AZ35: =FREQUENCY(I34:I533,AW35:AW54) -> 
A36: 3 | T36: 0 | U36: 0 | V36: 0 | Z36: 1 | AA36: 1 | AB36: 1 | AC36: 1 | AD36: 1 | AE36: 1 | AF36: 1 | AG36: 1 | AH36: 1 | AI36: 1 | AJ36: 1 | AK36: 1 | AL36: 1 | AM36: 1 | AN36: 1 | AO36: 1 | AP36: 1 | AQ36: 1 | AR36: 1 | AS36: 1 | AT36: 1 | AU36: 1 | AW36: 0.1 | AX36: =AW35&" to "&AW36 -> 0.05 to 0.1
A37: 4 | T37: 0 | U37: 0 | V37: 0 | Z37: 1 | AA37: 1 | AB37: 1 | AC37: 1 | AD37: 1 | AE37: 1 | AF37: 1 | AG37: 1 | AH37: 1 | AI37: 1 | AJ37: 1 | AK37: 1 | AL37: 1 | AM37: 1 | AN37: 1 | AO37: 1 | AP37: 1 | AQ37: 1 | AR37: 1 | AS37: 1 | AT37: 1 | AU37: 1 | AW37: 0.15 | AX37: 0.1 to 0.15
A38: 5 | T38: 0 | U38: 0 | V38: 0 | Z38: 1 | AA38: 1 | AB38: 1 | AC38: 1 | AD38: 1 | AE38: 1 | AF38: 1 | AG38: 1 | AH38: 1 | AI38: 1 | AJ38: 1 | AK38: 1 | AL38: 1 | AM38: 1 | AN38: 1 | AO38: 1 | AP38: 1 | AQ38: 1 | AR38: 1 | AS38: 1 | AT38: 1 | AU38: 1 | AW38: 0.2 | AX38: 0.15 to 0.2
A39: 6 | T39: 0 | U39: 0 | V39: 0 | Z39: 1 | AA39: 1 | AB39: 1 | AC39: 1 | AD39: 1 | AE39: 1 | AF39: 1 | AG39: 1 | AH39: 1 | AI39: 1 | AJ39: 1 | AK39: 1 | AL39: 1 | AM39: 1 | AN39: 1 | AO39: 1 | AP39: 1 | AQ39: 1 | AR39: 1 | AS39: 1 | AT39: 1 | AU39: 1 | AW39: 0.25 | AX39: 0.2 to 0.25
A40: 7 | T40: 0 | U40: 0 | V40: 0 | Z40: 1 | AA40: 1 | AB40: 1 | AC40: 1 | AD40: 1 | AE40: 1 | AF40: 1 | AG40: 1 | AH40: 1 | AI40: 1 | AJ40: 1 | AK40: 1 | AL40: 1 | AM40: 1 | AN40: 1 | AO40: 1 | AP40: 1 | AQ40: 1 | AR40: 1 | AS40: 1 | AT40: 1 | AU40: 1 | AW40: 0.3 | AX40: 0.25 to 0.3
A41: 8 | T41: 0 | U41: 0 | V41: 0 | Z41: 1 | AA41: 1 | AB41: 1 | AC41: 1 | AD41: 1 | AE41: 1 | AF41: 1 | AG41: 1 | AH41: 1 | AI41: 1 | AJ41: 1 | AK41: 1 | AL41: 1 | AM41: 1 | AN41: 1 | AO41: 1 | AP41: 1 | AQ41: 1 | AR41: 1 | AS41: 1 | AT41: 1 | AU41: 1 | AW41: 0.35 | AX41: 0.3 to 0.35
A42: 9 | T42: 0 | U42: 0 | V42: 0 | Z42: 1 | AA42: 1 | AB42: 1 | AC42: 1 | AD42: 1 | AE42: 1 | AF42: 1 | AG42: 1 | AH42: 1 | AI42: 1 | AJ42: 1 | AK42: 1 | AL42: 1 | AM42: 1 | AN42: 1 | AO42: 1 | AP42: 1 | AQ42: 1 | AR42: 1 | AS42: 1 | AT42: 1 | AU42: 1 | AW42: 0.4 | AX42: 0.35 to 0.4
A43: 10 | T43: 0 | U43: 0 | V43: 0 | Z43: 1 | AA43: 1 | AB43: 1 | AC43: 1 | AD43: 1 | AE43: 1 | AF43: 1 | AG43: 1 | AH43: 1 | AI43: 1 | AJ43: 1 | AK43: 1 | AL43: 1 | AM43: 1 | AN43: 1 | AO43: 1 | AP43: 1 | AQ43: 1 | AR43: 1 | AS43: 1 | AT43: 1 | AU43: 1 | AW43: 0.45 | AX43: 0.4 to 0.45
A44: 11 | T44: 0 | U44: 0 | V44: 0 | Z44: 1 | AA44: 1 | AB44: 1 | AC44: 1 | AD44: 1 | AE44: 1 | AF44: 1 | AG44: 1 | AH44: 1 | AI44: 1 | AJ44: 1 | AK44: 1 | AL44: 1 | AM44: 1 | AN44: 1 | AO44: 1 | AP44: 1 | AQ44: 1 | AR44: 1 | AS44: 1 | AT44: 1 | AU44: 1 | AW44: 0.5 | AX44: 0.45 to 0.5
A45: 12 | T45: 0 | U45: 0 | V45: 0 | Z45: 1 | AA45: 1 | AB45: 1 | AC45: 1 | AD45: 1 | AE45: 1 | AF45: 1 | AG45: 1 | AH45: 1 | AI45: 1 | AJ45: 1 | AK45: 1 | AL45: 1 | AM45: 1 | AN45: 1 | AO45: 1 | AP45: 1 | AQ45: 1 | AR45: 1 | AS45: 1 | AT45: 1 | AU45: 1 | AW45: 0.55 | AX45: 0.5 to 0.55
A46: 13 | T46: 0 | U46: 0 | V46: 0 | Z46: 1 | AA46: 1 | AB46: 1 | AC46: 1 | AD46: 1 | AE46: 1 | AF46: 1 | AG46: 1 | AH46: 1 | AI46: 1 | AJ46: 1 | AK46: 1 | AL46: 1 | AM46: 1 | AN46: 1 | AO46: 1 | AP46: 1 | AQ46: 1 | AR46: 1 | AS46: 1 | AT46: 1 | AU46: 1 | AW46: 0.6 | AX46: 0.55 to 0.6
A47: 14 | T47: 0 | U47: 0 | V47: 0 | Z47: 1 | AA47: 1 | AB47: 1 | AC47: 1 | AD47: 1 | AE47: 1 | AF47: 1 | AG47: 1 | AH47: 1 | AI47: 1 | AJ47: 1 | AK47: 1 | AL47: 1 | AM47: 1 | AN47: 1 | AO47: 1 | AP47: 1 | AQ47: 1 | AR47: 1 | AS47: 1 | AT47: 1 | AU47: 1 | AW47: 0.65 | AX47: 0.6 to 0.65
A48: 15 | T48: 0 | U48: 0 | V48: 0 | Z48: 1 | AA48: 1 | AB48: 1 | AC48: 1 | AD48: 1 | AE48: 1 | AF48: 1 | AG48: 1 | AH48: 1 | AI48: 1 | AJ48: 1 | AK48: 1 | AL48: 1 | AM48: 1 | AN48: 1 | AO48: 1 | AP48: 1 | AQ48: 1 | AR48: 1 | AS48: 1 | AT48: 1 | AU48: 1 | AW48: 0.7 | AX48: 0.65 to 0.7
A49: 16 | T49: 0 | U49: 0 | V49: 0 | Z49: 1 | AA49: 1 | AB49: 1 | AC49: 1 | AD49: 1 | AE49: 1 | AF49: 1 | AG49: 1 | AH49: 1 | AI49: 1 | AJ49: 1 | AK49: 1 | AL49: 1 | AM49: 1 | AN49: 1 | AO49: 1 | AP49: 1 | AQ49: 1 | AR49: 1 | AS49: 1 | AT49: 1 | AU49: 1 | AW49: 0.75 | AX49: 0.7 to 0.75
A50: 17 | T50: 0 | U50: 0 | V50: 0 | Z50: =IF($V50*Z$33*1000-$T50>=0,1,0) -> 1 | AA50: 1 | AB50: 1 | AC50: 1 | AD50: 1 | AE50: 1 | AF50: 1 | AG50: 1 | AH50: 1 | AI50: 1 | AJ50: 1 | AK50: 1 | AL50: 1 | AM50: 1 | AN50: 1 | AO50: 1 | AP50: =IF($V50*AP$33*1000-$T50>=0,1,0) -> 1 | AQ50: 1 | AR50: 1 | AS50: 1 | AT50: 1 | AU50: 1 | AW50: 0.8 | AX50: 0.75 to 0.8
A51: 18 | T51: 0 | U51: 0 | V51: 0 | Z51: 1 | AA51: 1 | AB51: 1 | AC51: 1 | AD51: 1 | AE51: 1 | AF51: 1 | AG51: 1 | AH51: 1 | AI51: 1 | AJ51: 1 | AK51: 1 | AL51: 1 | AM51: 1 | AN51: 1 | AO51: 1 | AP51: 1 | AQ51: 1 | AR51: 1 | AS51: 1 | AT51: 1 | AU51: 1 | AW51: 0.85 | AX51: 0.8 to 0.85
A52: 19 | T52: 0 | U52: 0 | V52: 0 | Z52: 1 | AA52: 1 | AB52: 1 | AC52: 1 | AD52: 1 | AE52: 1 | AF52: 1 | AG52: 1 | AH52: 1 | AI52: 1 | AJ52: 1 | AK52: 1 | AL52: 1 | AM52: 1 | AN52: 1 | AO52: 1 | AP52: 1 | AQ52: 1 | AR52: 1 | AS52: 1 | AT52: 1 | AU52: 1 | AW52: 0.9 | AX52: 0.85 to 0.9
A53: 20 | T53: 0 | U53: 0 | V53: 0 | Z53: 1 | AA53: 1 | AB53: 1 | AC53: 1 | AD53: 1 | AE53: 1 | AF53: 1 | AG53: 1 | AH53: 1 | AI53: 1 | AJ53: 1 | AK53: 1 | AL53: 1 | AM53: 1 | AN53: 1 | AO53: 1 | AP53: 1 | AQ53: 1 | AR53: 1 | AS53: 1 | AT53: 1 | AU53: 1 | AW53: 0.95 | AX53: 0.9 to 0.95
A54: 21 | T54: 0 | U54: 0 | V54: 0 | Z54: 1 | AA54: 1 | AB54: 1 | AC54: 1 | AD54: 1 | AE54: 1 | AF54: 1 | AG54: 1 | AH54: 1 | AI54: 1 | AJ54: 1 | AK54: 1 | AL54: 1 | AM54: 1 | AN54: 1 | AO54: 1 | AP54: 1 | AQ54: 1 | AR54: 1 | AS54: 1 | AT54: 1 | AU54: 1 | AW54: 1 | AX54: 0.95 to 1
A55: 22 | T55: 0 | U55: 0 | V55: 0 | Z55: 1 | AA55: 1 | AB55: 1 | AC55: 1 | AD55: 1 | AE55: 1 | AF55: 1 | AG55: 1 | AH55: 1 | AI55: 1 | AJ55: 1 | AK55: 1 | AL55: 1 | AM55: 1 | AN55: 1 | AO55: 1 | AP55: 1 | AQ55: 1 | AR55: 1 | AS55: 1 | AT55: 1 | AU55: 1
A56: 23 | T56: 0 | U56: 0 | V56: 0 | Z56: 1 | AA56: 1 | AB56: 1 | AC56: 1 | AD56: 1 | AE56: 1 | AF56: 1 | AG56: 1 | AH56: 1 | AI56: 1 | AJ56: 1 | AK56: 1 | AL56: 1 | AM56: 1 | AN56: 1 | AO56: 1 | AP56: 1 | AQ56: 1 | AR56: 1 | AS56: 1 | AT56: 1 | AU56: 1
A57: 24 | T57: 0 | U57: 0 | V57: 0 | Z57: 1 | AA57: 1 | AB57: 1 | AC57: 1 | AD57: 1 | AE57: 1 | AF57: 1 | AG57: 1 | AH57: 1 | AI57: 1 | AJ57: 1 | AK57: 1 | AL57: 1 | AM57: 1 | AN57: 1 | AO57: 1 | AP57: 1 | AQ57: 1 | AR57: 1 | AS57: 1 | AT57: 1 | AU57: 1
A58: 25 | T58: 0 | U58: 0 | V58: 0 | Z58: 1 | AA58: 1 | AB58: 1 | AC58: 1 | AD58: 1 | AE58: 1 | AF58: 1 | AG58: 1 | AH58: 1 | AI58: 1 | AJ58: 1 | AK58: 1 | AL58: 1 | AM58: 1 | AN58: 1 | AO58: 1 | AP58: 1 | AQ58: 1 | AR58: 1 | AS58: 1 | AT58: 1 | AU58: 1 | AW58: 1 | AY58: Treatment A | AZ58: Treatment B
A59: 26 | T59: 0 | U59: 0 | V59: 0 | Z59: 1 | AA59: 1 | AB59: 1 | AC59: 1 | AD59: 1 | AE59: 1 | AF59: 1 | AG59: 1 | AH59: 1 | AI59: 1 | AJ59: 1 | AK59: 1 | AL59: 1 | AM59: 1 | AN59: 1 | AO59: 1 | AP59: 1 | AQ59: 1 | AR59: 1 | AS59: 1 | AT59: 1 | AU59: 1 | AW59: =ROUNDDOWN(MIN(J34:J533, K34:K533),-1) ->  | AX59: =AW58&" to "&AW59 ->  | AY59: =FREQUENCY(J34:J533,AW59:AW79) ->  | AZ59: =FREQUENCY(K34:K533,AW59:AW79) -> 
A60: 27 | T60: 0 | U60: 0 | V60: 0 | Z60: 1 | AA60: 1 | AB60: 1 | AC60: 1 | AD60: 1 | AE60: 1 | AF60: 1 | AG60: 1 | AH60: 1 | AI60: 1 | AJ60: 1 | AK60: 1 | AL60: 1 | AM60: 1 | AN60: 1 | AO60: 1 | AP60: 1 | AQ60: 1 | AR60: 1 | AS60: 1 | AT60: 1 | AU60: 1 | AW60: =AW59+ROUNDUP((AW$79-AW$59)/20,0) ->  | AX60: =AW59&" to "&AW60 -> 
A61: 28 | T61: 0 | U61: 0 | V61: 0 | Z61: 1 | AA61: 1 | AB61: 1 | AC61: 1 | AD61: 1 | AE61: 1 | AF61: 1 | AG61: 1 | AH61: 1 | AI61: 1 | AJ61: 1 | AK61: 1 | AL61: 1 | AM61: 1 | AN61: 1 | AO61: 1 | AP61: 1 | AQ61: 1 | AR61: 1 | AS61: 1 | AT61: 1 | AU61: 1 | AX61: =AW60&" to "&AW61 -> 
A62: 29 | T62: 0 | U62: 0 | V62: 0 | Z62: 1 | AA62: 1 | AB62: 1 | AC62: 1 | AD62: 1 | AE62: 1 | AF62: 1 | AG62: 1 | AH62: 1 | AI62: 1 | AJ62: 1 | AK62: 1 | AL62: 1 | AM62: 1 | AN62: 1 | AO62: 1 | AP62: 1 | AQ62: 1 | AR62: 1 | AS62: 1 | AT62: 1 | AU62: 1
A63: 30 | T63: 0 | U63: 0 | V63: 0 | Z63: 1 | AA63: 1 | AB63: 1 | AC63: 1 | AD63: 1 | AE63: 1 | AF63: 1 | AG63: 1 | AH63: 1 | AI63: 1 | AJ63: 1 | AK63: 1 | AL63: 1 | AM63: 1 | AN63: 1 | AO63: 1 | AP63: 1 | AQ63: 1 | AR63: 1 | AS63: 1 | AT63: 1 | AU63: 1
A64: 31 | T64: 0 | U64: 0 | V64: 0 | Z64: 1 | AA64: 1 | AB64: 1 | AC64: 1 | AD64: 1 | AE64: 1 | AF64: 1 | AG64: 1 | AH64: 1 | AI64: 1 | AJ64: 1 | AK64: 1 | AL64: 1 | AM64: 1 | AN64: 1 | AO64: 1 | AP64: 1 | AQ64: 1 | AR64: 1 | AS64: 1 | AT64: 1 | AU64: 1
A65: 32 | T65: 0 | U65: 0 | V65: 0 | Z65: 1 | AA65: 1 | AB65: 1 | AC65: 1 | AD65: 1 | AE65: 1 | AF65: 1 | AG65: 1 | AH65: 1 | AI65: 1 | AJ65: 1 | AK65: 1 | AL65: 1 | AM65: 1 | AN65: 1 | AO65: =IF($V65*AO$33*1000-$T65>=0,1,0) -> 1 | AP65: 1 | AQ65: 1 | AR65: 1 | AS65: 1 | AT65: 1 | AU65: 1
A66: 33 | T66: 0 | U66: 0 | V66: 0 | Z66: =IF($V66*Z$33*1000-$T66>=0,1,0) -> 1 | AA66: 1 | AB66: 1 | AC66: 1 | AD66: 1 | AE66: 1 | AF66: 1 | AG66: 1 | AH66: 1 | AI66: 1 | AJ66: 1 | AK66: 1 | AL66: 1 | AM66: 1 | AN66: 1 | AO66: 1 | AP66: 1 | AQ66: 1 | AR66: 1 | AS66: 1 | AT66: 1 | AU66: 1
A67: 34 | T67: 0 | U67: 0 | V67: 0 | Z67: 1 | AA67: 1 | AB67: 1 | AC67: 1 | AD67: 1 | AE67: 1 | AF67: 1 | AG67: 1 | AH67: 1 | AI67: 1 | AJ67: 1 | AK67: 1 | AL67: 1 | AM67: 1 | AN67: 1 | AO67: 1 | AP67: 1 | AQ67: 1 | AR67: 1 | AS67: 1 | AT67: 1 | AU67: 1
A68: 35 | T68: 0 | U68: 0 | V68: 0 | Z68: 1 | AA68: 1 | AB68: 1 | AC68: 1 | AD68: 1 | AE68: 1 | AF68: 1 | AG68: 1 | AH68: 1 | AI68: 1 | AJ68: 1 | AK68: 1 | AL68: 1 | AM68: 1 | AN68: 1 | AO68: 1 | AP68: 1 | AQ68: 1 | AR68: 1 | AS68: 1 | AT68: 1 | AU68: 1
A69: 36 | T69: 0 | U69: 0 | V69: 0 | Z69: 1 | AA69: 1 | AB69: 1 | AC69: 1 | AD69: 1 | AE69: 1 | AF69: 1 | AG69: 1 | AH69: 1 | AI69: 1 | AJ69: 1 | AK69: 1 | AL69: 1 | AM69: 1 | AN69: 1 | AO69: 1 | AP69: 1 | AQ69: 1 | AR69: 1 | AS69: 1 | AT69: 1 | AU69: 1
A70: 37 | T70: 0 | U70: 0 | V70: 0 | Z70: 1 | AA70: 1 | AB70: 1 | AC70: 1 | AD70: 1 | AE70: 1 | AF70: 1 | AG70: 1 | AH70: 1 | AI70: 1 | AJ70: 1 | AK70: 1 | AL70: 1 | AM70: 1 | AN70: 1 | AO70: 1 | AP70: 1 | AQ70: 1 | AR70: 1 | AS70: 1 | AT70: 1 | AU70: 1
A71: 38 | T71: 0 | U71: 0 | V71: 0 | Z71: 1 | AA71: 1 | AB71: 1 | AC71: 1 | AD71: 1 | AE71: 1 | AF71: 1 | AG71: 1 | AH71: 1 | AI71: 1 | AJ71: 1 | AK71: 1 | AL71: 1 | AM71: 1 | AN71: 1 | AO71: 1 | AP71: 1 | AQ71: 1 | AR71: 1 | AS71: 1 | AT71: 1 | AU71: 1
A72: 39 | T72: 0 | U72: 0 | V72: 0 | Z72: 1 | AA72: 1 | AB72: 1 | AC72: 1 | AD72: 1 | AE72: 1 | AF72: 1 | AG72: 1 | AH72: 1 | AI72: 1 | AJ72: 1 | AK72: 1 | AL72: 1 | AM72: 1 | AN72: 1 | AO72: 1 | AP72: 1 | AQ72: 1 | AR72: 1 | AS72: 1 | AT72: 1 | AU72: 1
A73: 40 | T73: 0 | U73: 0 | V73: 0 | Z73: 1 | AA73: 1 | AB73: 1 | AC73: 1 | AD73: 1 | AE73: 1 | AF73: 1 | AG73: 1 | AH73: 1 | AI73: 1 | AJ73: 1 | AK73: 1 | AL73: 1 | AM73: 1 | AN73: 1 | AO73: 1 | AP73: 1 | AQ73: 1 | AR73: 1 | AS73: 1 | AT73: 1 | AU73: 1
A74: 41 | T74: 0 | U74: 0 | V74: 0 | Z74: 1 | AA74: 1 | AB74: 1 | AC74: 1 | AD74: 1 | AE74: 1 | AF74: 1 | AG74: 1 | AH74: 1 | AI74: 1 | AJ74: 1 | AK74: 1 | AL74: 1 | AM74: 1 | AN74: 1 | AO74: 1 | AP74: 1 | AQ74: 1 | AR74: 1 | AS74: 1 | AT74: 1 | AU74: 1
A75: 42 | T75: 0 | U75: 0 | V75: 0 | Z75: 1 | AA75: 1 | AB75: 1 | AC75: 1 | AD75: 1 | AE75: 1 | AF75: 1 | AG75: 1 | AH75: 1 | AI75: 1 | AJ75: 1 | AK75: 1 | AL75: 1 | AM75: 1 | AN75: 1 | AO75: 1 | AP75: 1 | AQ75: 1 | AR75: 1 | AS75: 1 | AT75: 1 | AU75: 1
A76: 43 | T76: 0 | U76: 0 | V76: 0 | Z76: 1 | AA76: 1 | AB76: 1 | AC76: 1 | AD76: 1 | AE76: 1 | AF76: 1 | AG76: 1 | AH76: 1 | AI76: 1 | AJ76: 1 | AK76: 1 | AL76: 1 | AM76: 1 | AN76: 1 | AO76: 1 | AP76: 1 | AQ76: 1 | AR76: 1 | AS76: 1 | AT76: 1 | AU76: 1
A77: 44 | T77: 0 | U77: 0 | V77: 0 | Z77: 1 | AA77: 1 | AB77: 1 | AC77: 1 | AD77: 1 | AE77: 1 | AF77: 1 | AG77: 1 | AH77: 1 | AI77: 1 | AJ77: 1 | AK77: 1 | AL77: 1 | AM77: 1 | AN77: 1 | AO77: 1 | AP77: 1 | AQ77: 1 | AR77: 1 | AS77: 1 | AT77: 1 | AU77: 1
A78: 45 | T78: 0 | U78: 0 | V78: 0 | Z78: 1 | AA78: 1 | AB78: 1 | AC78: 1 | AD78: 1 | AE78: 1 | AF78: 1 | AG78: 1 | AH78: 1 | AI78: 1 | AJ78: 1 | AK78: 1 | AL78: 1 | AM78: 1 | AN78: 1 | AO78: 1 | AP78: 1 | AQ78: 1 | AR78: 1 | AS78: 1 | AT78: 1 | AU78: 1
A79: 46 | T79: 0 | U79: 0 | V79: 0 | Z79: 1 | AA79: 1 | AB79: 1 | AC79: 1 | AD79: 1 | AE79: 1 | AF79: 1 | AG79: 1 | AH79: 1 | AI79: 1 | AJ79: 1 | AK79: 1 | AL79: 1 | AM79: 1 | AN79: 1 | AO79: 1 | AP79: 1 | AQ79: 1 | AR79: 1 | AS79: 1 | AT79: 1 | AU79: 1 | AW79: =ROUNDUP(MAX(J34:J533, K34:K533),-1) -> 
A80: 47 | T80: 0 | U80: 0 | V80: 0 | Z80: 1 | AA80: 1 | AB80: 1 | AC80: 1 | AD80: 1 | AE80: 1 | AF80: 1 | AG80: 1 | AH80: 1 | AI80: 1 | AJ80: 1 | AK80: 1 | AL80: 1 | AM80: 1 | AN80: 1 | AO80: 1 | AP80: 1 | AQ80: 1 | AR80: 1 | AS80: 1 | AT80: 1 | AU80: 1
A81: 48 | T81: 0 | U81: 0 | V81: 0 | Z81: 1 | AA81: 1 | AB81: 1 | AC81: 1 | AD81: 1 | AE81: 1 | AF81: 1 | AG81: 1 | AH81: 1 | AI81: 1 | AJ81: 1 | AK81: 1 | AL81: 1 | AM81: 1 | AN81: 1 | AO81: =IF($V81*AO$33*1000-$T81>=0,1,0) -> 1 | AP81: 1 | AQ81: 1 | AR81: 1 | AS81: 1 | AT81: 1 | AU81: 1
A82: 49 | T82: 0 | U82: 0 | V82: 0 | Z82: =IF($V82*Z$33*1000-$T82>=0,1,0) -> 1 | AA82: 1 | AB82: 1 | AC82: 1 | AD82: 1 | AE82: 1 | AF82: 1 | AG82: 1 | AH82: 1 | AI82: 1 | AJ82: 1 | AK82: 1 | AL82: 1 | AM82: 1 | AN82: 1 | AO82: 1 | AP82: 1 | AQ82: 1 | AR82: 1 | AS82: 1 | AT82: 1 | AU82: 1
A83: 50 | T83: 0 | U83: 0 | V83: 0 | Z83: 1 | AA83: 1 | AB83: 1 | AC83: 1 | AD83: 1 | AE83: 1 | AF83: 1 | AG83: 1 | AH83: 1 | AI83: 1 | AJ83: 1 | AK83: 1 | AL83: 1 | AM83: 1 | AN83: 1 | AO83: 1 | AP83: 1 | AQ83: 1 | AR83: 1 | AS83: 1 | AT83: 1 | AU83: 1 | AW83: 0 | AY83: Progression Free | AZ83: Progression
A84: 51 | T84: 0 | U84: 0 | V84: 0 | Z84: 1 | AA84: 1 | AB84: 1 | AC84: 1 | AD84: 1 | AE84: 1 | AF84: 1 | AG84: 1 | AH84: 1 | AI84: 1 | AJ84: 1 | AK84: 1 | AL84: 1 | AM84: 1 | AN84: 1 | AO84: 1 | AP84: 1 | AQ84: 1 | AR84: 1 | AS84: 1 | AT84: 1 | AU84: 1 | AW84: 0.05 | AX84: =AW83&" to "&AW84 -> 0 to 0.05 | AY84: =FREQUENCY(L34:L533,AW84:AW103) ->  | AZ84: =FREQUENCY(M34:M533,AW84:AW103) -> 
A85: 52 | T85: 0 | U85: 0 | V85: 0 | Z85: 1 | AA85: 1 | AB85: 1 | AC85: 1 | AD85: 1 | AE85: 1 | AF85: 1 | AG85: 1 | AH85: 1 | AI85: 1 | AJ85: 1 | AK85: 1 | AL85: 1 | AM85: 1 | AN85: 1 | AO85: 1 | AP85: 1 | AQ85: 1 | AR85: 1 | AS85: 1 | AT85: 1 | AU85: 1 | AW85: 0.1 | AX85: =AW84&" to "&AW85 -> 0.05 to 0.1
A86: 53 | T86: 0 | U86: 0 | V86: 0 | Z86: 1 | AA86: 1 | AB86: 1 | AC86: 1 | AD86: 1 | AE86: 1 | AF86: 1 | AG86: 1 | AH86: 1 | AI86: 1 | AJ86: 1 | AK86: 1 | AL86: 1 | AM86: 1 | AN86: 1 | AO86: 1 | AP86: 1 | AQ86: 1 | AR86: 1 | AS86: 1 | AT86: 1 | AU86: 1 | AW86: 0.15 | AX86: 0.1 to 0.15
A87: 54 | T87: 0 | U87: 0 | V87: 0 | Z87: 1 | AA87: 1 | AB87: 1 | AC87: 1 | AD87: 1 | AE87: 1 | AF87: 1 | AG87: 1 | AH87: 1 | AI87: 1 | AJ87: 1 | AK87: 1 | AL87: 1 | AM87: 1 | AN87: 1 | AO87: 1 | AP87: 1 | AQ87: 1 | AR87: 1 | AS87: 1 | AT87: 1 | AU87: 1 | AW87: 0.2 | AX87: 0.15 to 0.2
A88: 55 | T88: 0 | U88: 0 | V88: 0 | Z88: 1 | AA88: 1 | AB88: 1 | AC88: 1 | AD88: 1 | AE88: 1 | AF88: 1 | AG88: 1 | AH88: 1 | AI88: 1 | AJ88: 1 | AK88: 1 | AL88: 1 | AM88: 1 | AN88: 1 | AO88: 1 | AP88: 1 | AQ88: 1 | AR88: 1 | AS88: 1 | AT88: 1 | AU88: 1 | AW88: 0.25 | AX88: 0.2 to 0.25
A89: 56 | T89: 0 | U89: 0 | V89: 0 | Z89: 1 | AA89: 1 | AB89: 1 | AC89: 1 | AD89: 1 | AE89: 1 | AF89: 1 | AG89: 1 | AH89: 1 | AI89: 1 | AJ89: 1 | AK89: 1 | AL89: 1 | AM89: 1 | AN89: 1 | AO89: 1 | AP89: 1 | AQ89: 1 | AR89: 1 | AS89: 1 | AT89: 1 | AU89: 1 | AW89: 0.3 | AX89: 0.25 to 0.3
A90: 57 | T90: 0 | U90: 0 | V90: 0 | Z90: 1 | AA90: 1 | AB90: 1 | AC90: 1 | AD90: 1 | AE90: 1 | AF90: 1 | AG90: 1 | AH90: 1 | AI90: 1 | AJ90: 1 | AK90: 1 | AL90: 1 | AM90: 1 | AN90: 1 | AO90: 1 | AP90: 1 | AQ90: 1 | AR90: 1 | AS90: 1 | AT90: 1 | AU90: 1 | AW90: 0.35 | AX90: 0.3 to 0.35
A91: 58 | T91: 0 | U91: 0 | V91: 0 | Z91: 1 | AA91: 1 | AB91: 1 | AC91: 1 | AD91: 1 | AE91: 1 | AF91: 1 | AG91: 1 | AH91: 1 | AI91: 1 | AJ91: 1 | AK91: 1 | AL91: 1 | AM91: 1 | AN91: 1 | AO91: 1 | AP91: 1 | AQ91: 1 | AR91: 1 | AS91: 1 | AT91: 1 | AU91: 1 | AW91: 0.4 | AX91: 0.35 to 0.4
A92: 59 | T92: 0 | U92: 0 | V92: 0 | Z92: 1 | AA92: 1 | AB92: 1 | AC92: 1 | AD92: 1 | AE92: 1 | AF92: 1 | AG92: 1 | AH92: 1 | AI92: 1 | AJ92: 1 | AK92: 1 | AL92: 1 | AM92: 1 | AN92: 1 | AO92: 1 | AP92: 1 | AQ92: 1 | AR92: 1 | AS92: 1 | AT92: 1 | AU92: 1 | AW92: 0.45 | AX92: 0.4 to 0.45
A93: 60 | T93: 0 | U93: 0 | V93: 0 | Z93: 1 | AA93: 1 | AB93: 1 | AC93: 1 | AD93: 1 | AE93: 1 | AF93: 1 | AG93: 1 | AH93: 1 | AI93: 1 | AJ93: 1 | AK93: 1 | AL93: 1 | AM93: 1 | AN93: 1 | AO93: 1 | AP93: 1 | AQ93: 1 | AR93: 1 | AS93: 1 | AT93: 1 | AU93: 1 | AW93: 0.5 | AX93: 0.45 to 0.5
A94: 61 | T94: 0 | U94: 0 | V94: 0 | Z94: 1 | AA94: 1 | AB94: 1 | AC94: 1 | AD94: 1 | AE94: 1 | AF94: 1 | AG94: 1 | AH94: 1 | AI94: 1 | AJ94: 1 | AK94: 1 | AL94: 1 | AM94: 1 | AN94: 1 | AO94: 1 | AP94: 1 | AQ94: 1 | AR94: 1 | AS94: 1 | AT94: 1 | AU94: 1 | AW94: 0.55 | AX94: 0.5 to 0.55
A95: 62 | T95: 0 | U95: 0 | V95: 0 | Z95: 1 | AA95: 1 | AB95: 1 | AC95: 1 | AD95: 1 | AE95: 1 | AF95: 1 | AG95: 1 | AH95: 1 | AI95: 1 | AJ95: 1 | AK95: 1 | AL95: 1 | AM95: 1 | AN95: 1 | AO95: 1 | AP95: 1 | AQ95: 1 | AR95: 1 | AS95: 1 | AT95: 1 | AU95: 1 | AW95: 0.6 | AX95: 0.55 to 0.6
A96: 63 | T96: 0 | U96: 0 | V96: 0 | Z96: 1 | AA96: 1 | AB96: 1 | AC96: 1 | AD96: 1 | AE96: 1 | AF96: 1 | AG96: 1 | AH96: 1 | AI96: 1 | AJ96: 1 | AK96: 1 | AL96: 1 | AM96: 1 | AN96: 1 | AO96: 1 | AP96: 1 | AQ96: 1 | AR96: 1 | AS96: 1 | AT96: 1 | AU96: 1 | AW96: 0.65 | AX96: 0.6 to 0.65
A97: 64 | T97: 0 | U97: 0 | V97: 0 | Z97: 1 | AA97: 1 | AB97: 1 | AC97: 1 | AD97: 1 | AE97: 1 | AF97: 1 | AG97: 1 | AH97: 1 | AI97: 1 | AJ97: 1 | AK97: 1 | AL97: 1 | AM97: 1 | AN97: 1 | AO97: =IF($V97*AO$33*1000-$T97>=0,1,0) -> 1 | AP97: 1 | AQ97: 1 | AR97: 1 | AS97: 1 | AT97: 1 | AU97: 1 | AW97: 0.7 | AX97: 0.65 to 0.7
A98: 65 | T98: 0 | U98: 0 | V98: 0 | Z98: =IF($V98*Z$33*1000-$T98>=0,1,0) -> 1 | AA98: 1 | AB98: 1 | AC98: 1 | AD98: 1 | AE98: 1 | AF98: 1 | AG98: 1 | AH98: 1 | AI98: 1 | AJ98: 1 | AK98: 1 | AL98: 1 | AM98: 1 | AN98: 1 | AO98: 1 | AP98: 1 | AQ98: 1 | AR98: 1 | AS98: 1 | AT98: 1 | AU98: 1 | AW98: 0.75 | AX98: 0.7 to 0.75
A99: 66 | H99: =MIN(1-$J$5,BETAINV(F99,$L$4,$M$4)) ->  | I99: =MIN(1-$J$11,BETAINV(G99,$L$10,$M$10)) ->  | J99: =MAX(1, $L$16+$M$16*NORMSINV(D99)) ->  | K99: =MAX(1, $L$18+$M$18*NORMSINV(E99)) ->  | L99: =BETAINV(B99,$L$21,$M$21) ->  | M99: =BETAINV(C99,$L$22,$M$22) ->  | T99: =N99-Q99 -> 0 | U99: =O99-R99 -> 0 | V99: =P99-S99 -> 0 | W99: =T99/U99 ->  | X99: =T99/V99 ->  | Y99: =IF(AND(T99<0, V99>0), "優位", IF(AND(T99>0, V99<0), "劣位", IF(AND(T99<0, V99<0), "費用効果とも減", ""))) ->  | Z99: 1 | AA99: 1 | AB99: 1 | AC99: 1 | AD99: 1 | AE99: 1 | AF99: 1 | AG99: 1 | AH99: 1 | AI99: 1 | AJ99: 1 | AK99: 1 | AL99: 1 | AM99: 1 | AN99: 1 | AO99: 1 | AP99: 1 | AQ99: 1 | AR99: 1 | AS99: 1 | AT99: 1 | AU99: 1 | AW99: 0.8 | AX99: 0.75 to 0.8
A100: 67 | T100: 0 | U100: 0 | V100: 0 | Z100: 1 | AA100: 1 | AB100: 1 | AC100: 1 | AD100: 1 | AE100: 1 | AF100: 1 | AG100: 1 | AH100: 1 | AI100: 1 | AJ100: 1 | AK100: 1 | AL100: 1 | AM100: 1 | AN100: 1 | AO100: 1 | AP100: 1 | AQ100: 1 | AR100: 1 | AS100: 1 | AT100: 1 | AU100: 1 | AW100: 0.85 | AX100: 0.8 to 0.85
A101: 68 | T101: 0 | U101: 0 | V101: 0 | Z101: 1 | AA101: 1 | AB101: 1 | AC101: 1 | AD101: 1 | AE101: 1 | AF101: 1 | AG101: 1 | AH101: 1 | AI101: 1 | AJ101: 1 | AK101: 1 | AL101: 1 | AM101: 1 | AN101: 1 | AO101: 1 | AP101: 1 | AQ101: 1 | AR101: 1 | AS101: 1 | AT101: 1 | AU101: 1 | AW101: 0.9 | AX101: 0.85 to 0.9
A102: 69 | T102: 0 | U102: 0 | V102: 0 | Z102: 1 | AA102: 1 | AB102: 1 | AC102: 1 | AD102: 1 | AE102: 1 | AF102: 1 | AG102: 1 | AH102: 1 | AI102: 1 | AJ102: 1 | AK102: 1 | AL102: 1 | AM102: 1 | AN102: 1 | AO102: 1 | AP102: 1 | AQ102: 1 | AR102: 1 | AS102: 1 | AT102: 1 | AU102: 1 | AW102: 0.95 | AX102: 0.9 to 0.95
A103: 70 | T103: 0 | U103: 0 | V103: 0 | Z103: 1 | AA103: 1 | AB103: 1 | AC103: 1 | AD103: 1 | AE103: 1 | AF103: 1 | AG103: 1 | AH103: 1 | AI103: 1 | AJ103: 1 | AK103: 1 | AL103: 1 | AM103: 1 | AN103: 1 | AO103: 1 | AP103: 1 | AQ103: 1 | AR103: 1 | AS103: 1 | AT103: 1 | AU103: 1 | AW103: 1 | AX103: 0.95 to 1
A104: 71 | T104: 0 | U104: 0 | V104: 0 | Z104: 1 | AA104: 1 | AB104: 1 | AC104: 1 | AD104: 1 | AE104: 1 | AF104: 1 | AG104: 1 | AH104: 1 | AI104: 1 | AJ104: 1 | AK104: 1 | AL104: 1 | AM104: 1 | AN104: 1 | AO104: 1 | AP104: 1 | AQ104: 1 | AR104: 1 | AS104: 1 | AT104: 1 | AU104: 1
A105: 72 | T105: 0 | U105: 0 | V105: 0 | Z105: 1 | AA105: 1 | AB105: 1 | AC105: 1 | AD105: 1 | AE105: 1 | AF105: 1 | AG105: 1 | AH105: 1 | AI105: 1 | AJ105: 1 | AK105: 1 | AL105: 1 | AM105: 1 | AN105: 1 | AO105: 1 | AP105: 1 | AQ105: 1 | AR105: 1 | AS105: 1 | AT105: 1 | AU105: 1
A106: 73 | T106: 0 | U106: 0 | V106: 0 | Z106: 1 | AA106: 1 | AB106: 1 | AC106: 1 | AD106: 1 | AE106: 1 | AF106: 1 | AG106: 1 | AH106: 1 | AI106: 1 | AJ106: 1 | AK106: 1 | AL106: 1 | AM106: 1 | AN106: 1 | AO106: 1 | AP106: 1 | AQ106: 1 | AR106: 1 | AS106: 1 | AT106: 1 | AU106: 1
A107: 74 | T107: 0 | U107: 0 | V107: 0 | Z107: 1 | AA107: 1 | AB107: 1 | AC107: 1 | AD107: 1 | AE107: 1 | AF107: 1 | AG107: 1 | AH107: 1 | AI107: 1 | AJ107: 1 | AK107: 1 | AL107: 1 | AM107: 1 | AN107: 1 | AO107: 1 | AP107: 1 | AQ107: 1 | AR107: 1 | AS107: 1 | AT107: 1 | AU107: 1
A108: 75 | T108: 0 | U108: 0 | V108: 0 | Z108: 1 | AA108: 1 | AB108: 1 | AC108: 1 | AD108: 1 | AE108: 1 | AF108: 1 | AG108: 1 | AH108: 1 | AI108: 1 | AJ108: 1 | AK108: 1 | AL108: 1 | AM108: 1 | AN108: 1 | AO108: 1 | AP108: 1 | AQ108: 1 | AR108: 1 | AS108: 1 | AT108: 1 | AU108: 1
A109: 76 | T109: 0 | U109: 0 | V109: 0 | Z109: 1 | AA109: 1 | AB109: 1 | AC109: 1 | AD109: 1 | AE109: 1 | AF109: 1 | AG109: 1 | AH109: 1 | AI109: 1 | AJ109: 1 | AK109: 1 | AL109: 1 | AM109: 1 | AN109: 1 | AO109: 1 | AP109: 1 | AQ109: 1 | AR109: 1 | AS109: 1 | AT109: 1 | AU109: 1
A110: 77 | T110: 0 | U110: 0 | V110: 0 | Z110: 1 | AA110: 1 | AB110: 1 | AC110: 1 | AD110: 1 | AE110: 1 | AF110: 1 | AG110: 1 | AH110: 1 | AI110: 1 | AJ110: 1 | AK110: 1 | AL110: 1 | AM110: 1 | AN110: 1 | AO110: 1 | AP110: 1 | AQ110: 1 | AR110: 1 | AS110: 1 | AT110: 1 | AU110: 1
A111: 78 | T111: 0 | U111: 0 | V111: 0 | Z111: 1 | AA111: 1 | AB111: 1 | AC111: 1 | AD111: 1 | AE111: 1 | AF111: 1 | AG111: 1 | AH111: 1 | AI111: 1 | AJ111: 1 | AK111: 1 | AL111: 1 | AM111: 1 | AN111: 1 | AO111: 1 | AP111: 1 | AQ111: 1 | AR111: 1 | AS111: 1 | AT111: 1 | AU111: 1
A112: 79 | T112: 0 | U112: 0 | V112: 0 | Z112: 1 | AA112: 1 | AB112: 1 | AC112: 1 | AD112: 1 | AE112: 1 | AF112: 1 | AG112: 1 | AH112: 1 | AI112: 1 | AJ112: 1 | AK112: 1 | AL112: 1 | AM112: 1 | AN112: 1 | AO112: 1 | AP112: 1 | AQ112: 1 | AR112: 1 | AS112: 1 | AT112: 1 | AU112: 1
A113: 80 | T113: 0 | U113: 0 | V113: 0 | Z113: 1 | AA113: 1 | AB113: 1 | AC113: 1 | AD113: 1 | AE113: 1 | AF113: 1 | AG113: 1 | AH113: 1 | AI113: 1 | AJ113: 1 | AK113: 1 | AL113: 1 | AM113: 1 | AN113: 1 | AO113: =IF($V113*AO$33*1000-$T113>=0,1,0) -> 1 | AP113: 1 | AQ113: 1 | AR113: 1 | AS113: 1 | AT113: 1 | AU113: 1
A114: 81 | T114: 0 | U114: 0 | V114: 0 | Z114: =IF($V114*Z$33*1000-$T114>=0,1,0) -> 1 | AA114: 1 | AB114: 1 | AC114: 1 | AD114: 1 | AE114: 1 | AF114: 1 | AG114: 1 | AH114: 1 | AI114: 1 | AJ114: 1 | AK114: 1 | AL114: 1 | AM114: 1 | AN114: 1 | AO114: 1 | AP114: 1 | AQ114: 1 | AR114: 1 | AS114: 1 | AT114: 1 | AU114: 1
A115: 82 | T115: 0 | U115: 0 | V115: 0 | Z115: 1 | AA115: 1 | AB115: 1 | AC115: 1 | AD115: 1 | AE115: 1 | AF115: 1 | AG115: 1 | AH115: 1 | AI115: 1 | AJ115: 1 | AK115: 1 | AL115: 1 | AM115: 1 | AN115: 1 | AO115: 1 | AP115: 1 | AQ115: 1 | AR115: 1 | AS115: 1 | AT115: 1 | AU115: 1
A116: 83 | T116: 0 | U116: 0 | V116: 0 | Z116: 1 | AA116: 1 | AB116: 1 | AC116: 1 | AD116: 1 | AE116: 1 | AF116: 1 | AG116: 1 | AH116: 1 | AI116: 1 | AJ116: 1 | AK116: 1 | AL116: 1 | AM116: 1 | AN116: 1 | AO116: 1 | AP116: 1 | AQ116: 1 | AR116: 1 | AS116: 1 | AT116: 1 | AU116: 1
A117: 84 | T117: 0 | U117: 0 | V117: 0 | Z117: 1 | AA117: 1 | AB117: 1 | AC117: 1 | AD117: 1 | AE117: 1 | AF117: 1 | AG117: 1 | AH117: 1 | AI117: 1 | AJ117: 1 | AK117: 1 | AL117: 1 | AM117: 1 | AN117: 1 | AO117: 1 | AP117: 1 | AQ117: 1 | AR117: 1 | AS117: 1 | AT117: 1 | AU117: 1
A118: 85 | T118: 0 | U118: 0 | V118: 0 | Z118: 1 | AA118: 1 | AB118: 1 | AC118: 1 | AD118: 1 | AE118: 1 | AF118: 1 | AG118: 1 | AH118: 1 | AI118: 1 | AJ118: 1 | AK118: 1 | AL118: 1 | AM118: 1 | AN118: 1 | AO118: 1 | AP118: 1 | AQ118: 1 | AR118: 1 | AS118: 1 | AT118: 1 | AU118: 1
A119: 86 | T119: 0 | U119: 0 | V119: 0 | Z119: 1 | AA119: 1 | AB119: 1 | AC119: 1 | AD119: 1 | AE119: 1 | AF119: 1 | AG119: 1 | AH119: 1 | AI119: 1 | AJ119: 1 | AK119: 1 | AL119: 1 | AM119: 1 | AN119: 1 | AO119: 1 | AP119: 1 | AQ119: 1 | AR119: 1 | AS119: 1 | AT119: 1 | AU119: 1
A120: 87 | T120: 0 | U120: 0 | V120: 0 | Z120: 1 | AA120: 1 | AB120: 1 | AC120: 1 | AD120: 1 | AE120: 1 | AF120: 1 | AG120: 1 | AH120: 1 | AI120: 1 | AJ120: 1 | AK120: 1 | AL120: 1 | AM120: 1 | AN120: 1 | AO120: 1 | AP120: 1 | AQ120: 1 | AR120: 1 | AS120: 1 | AT120: 1 | AU120: 1
A121: 88 | T121: 0 | U121: 0 | V121: 0 | Z121: 1 | AA121: 1 | AB121: 1 | AC121: 1 | AD121: 1 | AE121: 1 | AF121: 1 | AG121: 1 | AH121: 1 | AI121: 1 | AJ121: 1 | AK121: 1 | AL121: 1 | AM121: 1 | AN121: 1 | AO121: 1 | AP121: 1 | AQ121: 1 | AR121: 1 | AS121: 1 | AT121: 1 | AU121: 1
A122: 89 | T122: 0 | U122: 0 | V122: 0 | Z122: 1 | AA122: 1 | AB122: 1 | AC122: 1 | AD122: 1 | AE122: 1 | AF122: 1 | AG122: 1 | AH122: 1 | AI122: 1 | AJ122: 1 | AK122: 1 | AL122: 1 | AM122: 1 | AN122: 1 | AO122: 1 | AP122: 1 | AQ122: 1 | AR122: 1 | AS122: 1 | AT122: 1 | AU122: 1
A123: 90 | T123: 0 | U123: 0 | V123: 0 | Z123: 1 | AA123: 1 | AB123: 1 | AC123: 1 | AD123: 1 | AE123: 1 | AF123: 1 | AG123: 1 | AH123: 1 | AI123: 1 | AJ123: 1 | AK123: 1 | AL123: 1 | AM123: 1 | AN123: 1 | AO123: 1 | AP123: 1 | AQ123: 1 | AR123: 1 | AS123: 1 | AT123: 1 | AU123: 1
A124: 91 | T124: 0 | U124: 0 | V124: 0 | Z124: 1 | AA124: 1 | AB124: 1 | AC124: 1 | AD124: 1 | AE124: 1 | AF124: 1 | AG124: 1 | AH124: 1 | AI124: 1 | AJ124: 1 | AK124: 1 | AL124: 1 | AM124: 1 | AN124: 1 | AO124: 1 | AP124: 1 | AQ124: 1 | AR124: 1 | AS124: 1 | AT124: 1 | AU124: 1
A125: 92 | T125: 0 | U125: 0 | V125: 0 | Z125: 1 | AA125: 1 | AB125: 1 | AC125: 1 | AD125: 1 | AE125: 1 | AF125: 1 | AG125: 1 | AH125: 1 | AI125: 1 | AJ125: 1 | AK125: 1 | AL125: 1 | AM125: 1 | AN125: 1 | AO125: 1 | AP125: 1 | AQ125: 1 | AR125: 1 | AS125: 1 | AT125: 1 | AU125: 1
A126: 93 | T126: 0 | U126: 0 | V126: 0 | Z126: 1 | AA126: 1 | AB126: 1 | AC126: 1 | AD126: 1 | AE126: 1 | AF126: 1 | AG126: 1 | AH126: 1 | AI126: 1 | AJ126: 1 | AK126: 1 | AL126: 1 | AM126: 1 | AN126: 1 | AO126: 1 | AP126: 1 | AQ126: 1 | AR126: 1 | AS126: 1 | AT126: 1 | AU126: 1
A127: 94 | T127: 0 | U127: 0 | V127: 0 | Z127: 1 | AA127: 1 | AB127: 1 | AC127: 1 | AD127: 1 | AE127: 1 | AF127: 1 | AG127: 1 | AH127: 1 | AI127: 1 | AJ127: 1 | AK127: 1 | AL127: 1 | AM127: 1 | AN127: 1 | AO127: 1 | AP127: 1 | AQ127: 1 | AR127: 1 | AS127: 1 | AT127: 1 | AU127: 1
A128: 95 | T128: 0 | U128: 0 | V128: 0 | Z128: 1 | AA128: 1 | AB128: 1 | AC128: 1 | AD128: 1 | AE128: 1 | AF128: 1 | AG128: 1 | AH128: 1 | AI128: 1 | AJ128: 1 | AK128: 1 | AL128: 1 | AM128: 1 | AN128: 1 | AO128: 1 | AP128: 1 | AQ128: 1 | AR128: 1 | AS128: 1 | AT128: 1 | AU128: 1
A129: 96 | T129: 0 | U129: 0 | V129: 0 | Z129: 1 | AA129: 1 | AB129: 1 | AC129: 1 | AD129: 1 | AE129: 1 | AF129: 1 | AG129: 1 | AH129: 1 | AI129: 1 | AJ129: 1 | AK129: 1 | AL129: 1 | AM129: 1 | AN129: 1 | AO129: =IF($V129*AO$33*1000-$T129>=0,1,0) -> 1 | AP129: 1 | AQ129: 1 | AR129: 1 | AS129: 1 | AT129: 1 | AU129: 1
A130: 97 | T130: 0 | U130: 0 | V130: 0 | Z130: =IF($V130*Z$33*1000-$T130>=0,1,0) -> 1 | AA130: 1 | AB130: 1 | AC130: 1 | AD130: 1 | AE130: 1 | AF130: 1 | AG130: 1 | AH130: 1 | AI130: 1 | AJ130: 1 | AK130: 1 | AL130: 1 | AM130: 1 | AN130: 1 | AO130: 1 | AP130: 1 | AQ130: 1 | AR130: 1 | AS130: 1 | AT130: 1 | AU130: 1
A131: 98 | T131: 0 | U131: 0 | V131: 0 | Z131: 1 | AA131: 1 | AB131: 1 | AC131: 1 | AD131: 1 | AE131: 1 | AF131: 1 | AG131: 1 | AH131: 1 | AI131: 1 | AJ131: 1 | AK131: 1 | AL131: 1 | AM131: 1 | AN131: 1 | AO131: 1 | AP131: 1 | AQ131: 1 | AR131: 1 | AS131: 1 | AT131: 1 | AU131: 1
A132: 99 | T132: 0 | U132: 0 | V132: 0 | Z132: 1 | AA132: 1 | AB132: 1 | AC132: 1 | AD132: 1 | AE132: 1 | AF132: 1 | AG132: 1 | AH132: 1 | AI132: 1 | AJ132: 1 | AK132: 1 | AL132: 1 | AM132: 1 | AN132: 1 | AO132: 1 | AP132: 1 | AQ132: 1 | AR132: 1 | AS132: 1 | AT132: 1 | AU132: 1
A133: 100 | T133: 0 | U133: 0 | V133: 0 | Z133: 1 | AA133: 1 | AB133: 1 | AC133: 1 | AD133: 1 | AE133: 1 | AF133: 1 | AG133: 1 | AH133: 1 | AI133: 1 | AJ133: 1 | AK133: 1 | AL133: 1 | AM133: 1 | AN133: 1 | AO133: 1 | AP133: 1 | AQ133: 1 | AR133: 1 | AS133: 1 | AT133: 1 | AU133: 1
A134: 101 | T134: 0 | U134: 0 | V134: 0 | Z134: 1 | AA134: 1 | AB134: 1 | AC134: 1 | AD134: 1 | AE134: 1 | AF134: 1 | AG134: 1 | AH134: 1 | AI134: 1 | AJ134: 1 | AK134: 1 | AL134: 1 | AM134: 1 | AN134: 1 | AO134: 1 | AP134: 1 | AQ134: 1 | AR134: 1 | AS134: 1 | AT134: 1 | AU134: 1
A135: 102 | T135: 0 | U135: 0 | V135: 0 | Z135: 1 | AA135: 1 | AB135: 1 | AC135: 1 | AD135: 1 | AE135: 1 | AF135: 1 | AG135: 1 | AH135: 1 | AI135: 1 | AJ135: 1 | AK135: 1 | AL135: 1 | AM135: 1 | AN135: 1 | AO135: 1 | AP135: 1 | AQ135: 1 | AR135: 1 | AS135: 1 | AT135: 1 | AU135: 1
A136: 103 | T136: 0 | U136: 0 | V136: 0 | Z136: 1 | AA136: 1 | AB136: 1 | AC136: 1 | AD136: 1 | AE136: 1 | AF136: 1 | AG136: 1 | AH136: 1 | AI136: 1 | AJ136: 1 | AK136: 1 | AL136: 1 | AM136: 1 | AN136: 1 | AO136: 1 | AP136: 1 | AQ136: 1 | AR136: 1 | AS136: 1 | AT136: 1 | AU136: 1
A137: 104 | T137: 0 | U137: 0 | V137: 0 | Z137: 1 | AA137: 1 | AB137: 1 | AC137: 1 | AD137: 1 | AE137: 1 | AF137: 1 | AG137: 1 | AH137: 1 | AI137: 1 | AJ137: 1 | AK137: 1 | AL137: 1 | AM137: 1 | AN137: 1 | AO137: 1 | AP137: 1 | AQ137: 1 | AR137: 1 | AS137: 1 | AT137: 1 | AU137: 1
A138: 105 | T138: 0 | U138: 0 | V138: 0 | Z138: 1 | AA138: 1 | AB138: 1 | AC138: 1 | AD138: 1 | AE138: 1 | AF138: 1 | AG138: 1 | AH138: 1 | AI138: 1 | AJ138: 1 | AK138: 1 | AL138: 1 | AM138: 1 | AN138: 1 | AO138: 1 | AP138: 1 | AQ138: 1 | AR138: 1 | AS138: 1 | AT138: 1 | AU138: 1
A139: 106 | T139: 0 | U139: 0 | V139: 0 | Z139: 1 | AA139: 1 | AB139: 1 | AC139: 1 | AD139: 1 | AE139: 1 | AF139: 1 | AG139: 1 | AH139: 1 | AI139: 1 | AJ139: 1 | AK139: 1 | AL139: 1 | AM139: 1 | AN139: 1 | AO139: 1 | AP139: 1 | AQ139: 1 | AR139: 1 | AS139: 1 | AT139: 1 | AU139: 1
A140: 107 | T140: 0 | U140: 0 | V140: 0 | Z140: 1 | AA140: 1 | AB140: 1 | AC140: 1 | AD140: 1 | AE140: 1 | AF140: 1 | AG140: 1 | AH140: 1 | AI140: 1 | AJ140: 1 | AK140: 1 | AL140: 1 | AM140: 1 | AN140: 1 | AO140: 1 | AP140: 1 | AQ140: 1 | AR140: 1 | AS140: 1 | AT140: 1 | AU140: 1
A141: 108 | T141: 0 | U141: 0 | V141: 0 | Z141: 1 | AA141: 1 | AB141: 1 | AC141: 1 | AD141: 1 | AE141: 1 | AF141: 1 | AG141: 1 | AH141: 1 | AI141: 1 | AJ141: 1 | AK141: 1 | AL141: 1 | AM141: 1 | AN141: 1 | AO141: 1 | AP141: 1 | AQ141: 1 | AR141: 1 | AS141: 1 | AT141: 1 | AU141: 1
A142: 109 | T142: 0 | U142: 0 | V142: 0 | Z142: 1 | AA142: 1 | AB142: 1 | AC142: 1 | AD142: 1 | AE142: 1 | AF142: 1 | AG142: 1 | AH142: 1 | AI142: 1 | AJ142: 1 | AK142: 1 | AL142: 1 | AM142: 1 | AN142: 1 | AO142: 1 | AP142: 1 | AQ142: 1 | AR142: 1 | AS142: 1 | AT142: 1 | AU142: 1
A143: 110 | T143: 0 | U143: 0 | V143: 0 | Z143: 1 | AA143: 1 | AB143: 1 | AC143: 1 | AD143: 1 | AE143: 1 | AF143: 1 | AG143: 1 | AH143: 1 | AI143: 1 | AJ143: 1 | AK143: 1 | AL143: 1 | AM143: 1 | AN143: 1 | AO143: 1 | AP143: 1 | AQ143: 1 | AR143: 1 | AS143: 1 | AT143: 1 | AU143: 1
A144: 111 | T144: 0 | U144: 0 | V144: 0 | Z144: 1 | AA144: 1 | AB144: 1 | AC144: 1 | AD144: 1 | AE144: 1 | AF144: 1 | AG144: 1 | AH144: 1 | AI144: 1 | AJ144: 1 | AK144: 1 | AL144: 1 | AM144: 1 | AN144: 1 | AO144: 1 | AP144: 1 | AQ144: 1 | AR144: 1 | AS144: 1 | AT144: 1 | AU144: 1
A145: 112 | T145: 0 | U145: 0 | V145: 0 | Z145: 1 | AA145: 1 | AB145: 1 | AC145: 1 | AD145: 1 | AE145: 1 | AF145: 1 | AG145: 1 | AH145: 1 | AI145: 1 | AJ145: 1 | AK145: 1 | AL145: 1 | AM145: 1 | AN145: 1 | AO145: =IF($V145*AO$33*1000-$T145>=0,1,0) -> 1 | AP145: 1 | AQ145: 1 | AR145: 1 | AS145: 1 | AT145: 1 | AU145: 1
A146: 113 | T146: 0 | U146: 0 | V146: 0 | Z146: =IF($V146*Z$33*1000-$T146>=0,1,0) -> 1 | AA146: 1 | AB146: 1 | AC146: 1 | AD146: 1 | AE146: 1 | AF146: 1 | AG146: 1 | AH146: 1 | AI146: 1 | AJ146: 1 | AK146: 1 | AL146: 1 | AM146: 1 | AN146: 1 | AO146: 1 | AP146: 1 | AQ146: 1 | AR146: 1 | AS146: 1 | AT146: 1 | AU146: 1
A147: 114 | T147: 0 | U147: 0 | V147: 0 | Z147: 1 | AA147: 1 | AB147: 1 | AC147: 1 | AD147: 1 | AE147: 1 | AF147: 1 | AG147: 1 | AH147: 1 | AI147: 1 | AJ147: 1 | AK147: 1 | AL147: 1 | AM147: 1 | AN147: 1 | AO147: 1 | AP147: 1 | AQ147: 1 | AR147: 1 | AS147: 1 | AT147: 1 | AU147: 1
A148: 115 | T148: 0 | U148: 0 | V148: 0 | Z148: 1 | AA148: 1 | AB148: 1 | AC148: 1 | AD148: 1 | AE148: 1 | AF148: 1 | AG148: 1 | AH148: 1 | AI148: 1 | AJ148: 1 | AK148: 1 | AL148: 1 | AM148: 1 | AN148: 1 | AO148: 1 | AP148: 1 | AQ148: 1 | AR148: 1 | AS148: 1 | AT148: 1 | AU148: 1
A149: 116 | T149: 0 | U149: 0 | V149: 0 | Z149: 1 | AA149: 1 | AB149: 1 | AC149: 1 | AD149: 1 | AE149: 1 | AF149: 1 | AG149: 1 | AH149: 1 | AI149: 1 | AJ149: 1 | AK149: 1 | AL149: 1 | AM149: 1 | AN149: 1 | AO149: 1 | AP149: 1 | AQ149: 1 | AR149: 1 | AS149: 1 | AT149: 1 | AU149: 1
A150: 117 | T150: 0 | U150: 0 | V150: 0 | Z150: 1 | AA150: 1 | AB150: 1 | AC150: 1 | AD150: 1 | AE150: 1 | AF150: 1 | AG150: 1 | AH150: 1 | AI150: 1 | AJ150: 1 | AK150: 1 | AL150: 1 | AM150: 1 | AN150: 1 | AO150: 1 | AP150: 1 | AQ150: 1 | AR150: 1 | AS150: 1 | AT150: 1 | AU150: 1
A151: 118 | T151: 0 | U151: 0 | V151: 0 | Z151: 1 | AA151: 1 | AB151: 1 | AC151: 1 | AD151: 1 | AE151: 1 | AF151: 1 | AG151: 1 | AH151: 1 | AI151: 1 | AJ151: 1 | AK151: 1 | AL151: 1 | AM151: 1 | AN151: 1 | AO151: 1 | AP151: 1 | AQ151: 1 | AR151: 1 | AS151: 1 | AT151: 1 | AU151: 1
A152: 119 | T152: 0 | U152: 0 | V152: 0 | Z152: 1 | AA152: 1 | AB152: 1 | AC152: 1 | AD152: 1 | AE152: 1 | AF152: 1 | AG152: 1 | AH152: 1 | AI152: 1 | AJ152: 1 | AK152: 1 | AL152: 1 | AM152: 1 | AN152: 1 | AO152: 1 | AP152: 1 | AQ152: 1 | AR152: 1 | AS152: 1 | AT152: 1 | AU152: 1
A153: 120 | T153: 0 | U153: 0 | V153: 0 | Z153: 1 | AA153: 1 | AB153: 1 | AC153: 1 | AD153: 1 | AE153: 1 | AF153: 1 | AG153: 1 | AH153: 1 | AI153: 1 | AJ153: 1 | AK153: 1 | AL153: 1 | AM153: 1 | AN153: 1 | AO153: 1 | AP153: 1 | AQ153: 1 | AR153: 1 | AS153: 1 | AT153: 1 | AU153: 1
A154: 121 | T154: 0 | U154: 0 | V154: 0 | Z154: 1 | AA154: 1 | AB154: 1 | AC154: 1 | AD154: 1 | AE154: 1 | AF154: 1 | AG154: 1 | AH154: 1 | AI154: 1 | AJ154: 1 | AK154: 1 | AL154: 1 | AM154: 1 | AN154: 1 | AO154: 1 | AP154: 1 | AQ154: 1 | AR154: 1 | AS154: 1 | AT154: 1 | AU154: 1
A155: 122 | T155: 0 | U155: 0 | V155: 0 | Z155: 1 | AA155: 1 | AB155: 1 | AC155: 1 | AD155: 1 | AE155: 1 | AF155: 1 | AG155: 1 | AH155: 1 | AI155: 1 | AJ155: 1 | AK155: 1 | AL155: 1 | AM155: 1 | AN155: 1 | AO155: 1 | AP155: 1 | AQ155: 1 | AR155: 1 | AS155: 1 | AT155: 1 | AU155: 1
A156: 123 | T156: 0 | U156: 0 | V156: 0 | Z156: 1 | AA156: 1 | AB156: 1 | AC156: 1 | AD156: 1 | AE156: 1 | AF156: 1 | AG156: 1 | AH156: 1 | AI156: 1 | AJ156: 1 | AK156: 1 | AL156: 1 | AM156: 1 | AN156: 1 | AO156: 1 | AP156: 1 | AQ156: 1 | AR156: 1 | AS156: 1 | AT156: 1 | AU156: 1
A157: 124 | T157: 0 | U157: 0 | V157: 0 | Z157: 1 | AA157: 1 | AB157: 1 | AC157: 1 | AD157: 1 | AE157: 1 | AF157: 1 | AG157: 1 | AH157: 1 | AI157: 1 | AJ157: 1 | AK157: 1 | AL157: 1 | AM157: 1 | AN157: 1 | AO157: 1 | AP157: 1 | AQ157: 1 | AR157: 1 | AS157: 1 | AT157: 1 | AU157: 1
A158: 125 | T158: 0 | U158: 0 | V158: 0 | Z158: 1 | AA158: 1 | AB158: 1 | AC158: 1 | AD158: 1 | AE158: 1 | AF158: 1 | AG158: 1 | AH158: 1 | AI158: 1 | AJ158: 1 | AK158: 1 | AL158: 1 | AM158: 1 | AN158: 1 | AO158: 1 | AP158: 1 | AQ158: 1 | AR158: 1 | AS158: 1 | AT158: 1 | AU158: 1
A159: 126 | T159: 0 | U159: 0 | V159: 0 | Z159: 1 | AA159: 1 | AB159: 1 | AC159: 1 | AD159: 1 | AE159: 1 | AF159: 1 | AG159: 1 | AH159: 1 | AI159: 1 | AJ159: 1 | AK159: 1 | AL159: 1 | AM159: 1 | AN159: 1 | AO159: 1 | AP159: 1 | AQ159: 1 | AR159: 1 | AS159: 1 | AT159: 1 | AU159: 1
A160: 127 | T160: 0 | U160: 0 | V160: 0 | Z160: 1 | AA160: 1 | AB160: 1 | AC160: 1 | AD160: 1 | AE160: 1 | AF160: 1 | AG160: 1 | AH160: 1 | AI160: 1 | AJ160: 1 | AK160: 1 | AL160: 1 | AM160: 1 | AN160: 1 | AO160: 1 | AP160: 1 | AQ160: 1 | AR160: 1 | AS160: 1 | AT160: 1 | AU160: 1
A161: 128 | T161: 0 | U161: 0 | V161: 0 | Z161: 1 | AA161: 1 | AB161: 1 | AC161: 1 | AD161: 1 | AE161: 1 | AF161: 1 | AG161: 1 | AH161: 1 | AI161: 1 | AJ161: 1 | AK161: 1 | AL161: 1 | AM161: 1 | AN161: 1 | AO161: =IF($V161*AO$33*1000-$T161>=0,1,0) -> 1 | AP161: 1 | AQ161: 1 | AR161: 1 | AS161: 1 | AT161: 1 | AU161: 1
A162: 129 | T162: 0 | U162: 0 | V162: 0 | Z162: =IF($V162*Z$33*1000-$T162>=0,1,0) -> 1 | AA162: 1 | AB162: 1 | AC162: 1 | AD162: 1 | AE162: 1 | AF162: 1 | AG162: 1 | AH162: 1 | AI162: 1 | AJ162: 1 | AK162: 1 | AL162: 1 | AM162: 1 | AN162: 1 | AO162: 1 | AP162: 1 | AQ162: 1 | AR162: 1 | AS162: 1 | AT162: 1 | AU162: 1
A163: 130 | H163: =MIN(1-$J$5,BETAINV(F163,$L$4,$M$4)) ->  | I163: =MIN(1-$J$11,BETAINV(G163,$L$10,$M$10)) ->  | J163: =MAX(1, $L$16+$M$16*NORMSINV(D163)) ->  | K163: =MAX(1, $L$18+$M$18*NORMSINV(E163)) ->  | L163: =BETAINV(B163,$L$21,$M$21) ->  | M163: =BETAINV(C163,$L$22,$M$22) ->  | T163: =N163-Q163 -> 0 | U163: =O163-R163 -> 0 | V163: =P163-S163 -> 0 | W163: =T163/U163 ->  | X163: =T163/V163 ->  | Y163: =IF(AND(T163<0, V163>0), "優位", IF(AND(T163>0, V163<0), "劣位", IF(AND(T163<0, V163<0), "費用効果とも減", ""))) ->  | Z163: 1 | AA163: 1 | AB163: 1 | AC163: 1 | AD163: 1 | AE163: 1 | AF163: 1 | AG163: 1 | AH163: 1 | AI163: 1 | AJ163: 1 | AK163: 1 | AL163: 1 | AM163: 1 | AN163: 1 | AO163: 1 | AP163: 1 | AQ163: 1 | AR163: 1 | AS163: 1 | AT163: 1 | AU163: 1
A164: 131 | T164: 0 | U164: 0 | V164: 0 | Z164: 1 | AA164: 1 | AB164: 1 | AC164: 1 | AD164: 1 | AE164: 1 | AF164: 1 | AG164: 1 | AH164: 1 | AI164: 1 | AJ164: 1 | AK164: 1 | AL164: 1 | AM164: 1 | AN164: 1 | AO164: 1 | AP164: 1 | AQ164: 1 | AR164: 1 | AS164: 1 | AT164: 1 | AU164: 1
A165: 132 | T165: 0 | U165: 0 | V165: 0 | Z165: 1 | AA165: 1 | AB165: 1 | AC165: 1 | AD165: 1 | AE165: 1 | AF165: 1 | AG165: 1 | AH165: 1 | AI165: 1 | AJ165: 1 | AK165: 1 | AL165: 1 | AM165: 1 | AN165: 1 | AO165: 1 | AP165: 1 | AQ165: 1 | AR165: 1 | AS165: 1 | AT165: 1 | AU165: 1
A166: 133 | T166: 0 | U166: 0 | V166: 0 | Z166: 1 | AA166: 1 | AB166: 1 | AC166: 1 | AD166: 1 | AE166: 1 | AF166: 1 | AG166: 1 | AH166: 1 | AI166: 1 | AJ166: 1 | AK166: 1 | AL166: 1 | AM166: 1 | AN166: 1 | AO166: 1 | AP166: 1 | AQ166: 1 | AR166: 1 | AS166: 1 | AT166: 1 | AU166: 1
A167: 134 | T167: 0 | U167: 0 | V167: 0 | Z167: 1 | AA167: 1 | AB167: 1 | AC167: 1 | AD167: 1 | AE167: 1 | AF167: 1 | AG167: 1 | AH167: 1 | AI167: 1 | AJ167: 1 | AK167: 1 | AL167: 1 | AM167: 1 | AN167: 1 | AO167: 1 | AP167: 1 | AQ167: 1 | AR167: 1 | AS167: 1 | AT167: 1 | AU167: 1
A168: 135 | T168: 0 | U168: 0 | V168: 0 | Z168: 1 | AA168: 1 | AB168: 1 | AC168: 1 | AD168: 1 | AE168: 1 | AF168: 1 | AG168: 1 | AH168: 1 | AI168: 1 | AJ168: 1 | AK168: 1 | AL168: 1 | AM168: 1 | AN168: 1 | AO168: 1 | AP168: 1 | AQ168: 1 | AR168: 1 | AS168: 1 | AT168: 1 | AU168: 1
A169: 136 | T169: 0 | U169: 0 | V169: 0 | Z169: 1 | AA169: 1 | AB169: 1 | AC169: 1 | AD169: 1 | AE169: 1 | AF169: 1 | AG169: 1 | AH169: 1 | AI169: 1 | AJ169: 1 | AK169: 1 | AL169: 1 | AM169: 1 | AN169: 1 | AO169: 1 | AP169: 1 | AQ169: 1 | AR169: 1 | AS169: 1 | AT169: 1 | AU169: 1
A170: 137 | T170: 0 | U170: 0 | V170: 0 | Z170: 1 | AA170: 1 | AB170: 1 | AC170: 1 | AD170: 1 | AE170: 1 | AF170: 1 | AG170: 1 | AH170: 1 | AI170: 1 | AJ170: 1 | AK170: 1 | AL170: 1 | AM170: 1 | AN170: 1 | AO170: 1 | AP170: 1 | AQ170: 1 | AR170: 1 | AS170: 1 | AT170: 1 | AU170: 1
A171: 138 | T171: 0 | U171: 0 | V171: 0 | Z171: 1 | AA171: 1 | AB171: 1 | AC171: 1 | AD171: 1 | AE171: 1 | AF171: 1 | AG171: 1 | AH171: 1 | AI171: 1 | AJ171: 1 | AK171: 1 | AL171: 1 | AM171: 1 | AN171: 1 | AO171: 1 | AP171: 1 | AQ171: 1 | AR171: 1 | AS171: 1 | AT171: 1 | AU171: 1
A172: 139 | T172: 0 | U172: 0 | V172: 0 | Z172: 1 | AA172: 1 | AB172: 1 | AC172: 1 | AD172: 1 | AE172: 1 | AF172: 1 | AG172: 1 | AH172: 1 | AI172: 1 | AJ172: 1 | AK172: 1 | AL172: 1 | AM172: 1 | AN172: 1 | AO172: 1 | AP172: 1 | AQ172: 1 | AR172: 1 | AS172: 1 | AT172: 1 | AU172: 1
A173: 140 | T173: 0 | U173: 0 | V173: 0 | Z173: 1 | AA173: 1 | AB173: 1 | AC173: 1 | AD173: 1 | AE173: 1 | AF173: 1 | AG173: 1 | AH173: 1 | AI173: 1 | AJ173: 1 | AK173: 1 | AL173: 1 | AM173: 1 | AN173: 1 | AO173: 1 | AP173: 1 | AQ173: 1 | AR173: 1 | AS173: 1 | AT173: 1 | AU173: 1
A174: 141 | T174: 0 | U174: 0 | V174: 0 | Z174: 1 | AA174: 1 | AB174: 1 | AC174: 1 | AD174: 1 | AE174: 1 | AF174: 1 | AG174: 1 | AH174: 1 | AI174: 1 | AJ174: 1 | AK174: 1 | AL174: 1 | AM174: 1 | AN174: 1 | AO174: 1 | AP174: 1 | AQ174: 1 | AR174: 1 | AS174: 1 | AT174: 1 | AU174: 1
A175: 142 | T175: 0 | U175: 0 | V175: 0 | Z175: 1 | AA175: 1 | AB175: 1 | AC175: 1 | AD175: 1 | AE175: 1 | AF175: 1 | AG175: 1 | AH175: 1 | AI175: 1 | AJ175: 1 | AK175: 1 | AL175: 1 | AM175: 1 | AN175: 1 | AO175: 1 | AP175: 1 | AQ175: 1 | AR175: 1 | AS175: 1 | AT175: 1 | AU175: 1
A176: 143 | T176: 0 | U176: 0 | V176: 0 | Z176: 1 | AA176: 1 | AB176: 1 | AC176: 1 | AD176: 1 | AE176: 1 | AF176: 1 | AG176: 1 | AH176: 1 | AI176: 1 | AJ176: 1 | AK176: 1 | AL176: 1 | AM176: 1 | AN176: 1 | AO176: 1 | AP176: 1 | AQ176: 1 | AR176: 1 | AS176: 1 | AT176: 1 | AU176: 1
A177: 144 | T177: 0 | U177: 0 | V177: 0 | Z177: 1 | AA177: 1 | AB177: 1 | AC177: 1 | AD177: 1 | AE177: 1 | AF177: 1 | AG177: 1 | AH177: 1 | AI177: 1 | AJ177: 1 | AK177: 1 | AL177: 1 | AM177: 1 | AN177: 1 | AO177: =IF($V177*AO$33*1000-$T177>=0,1,0) -> 1 | AP177: 1 | AQ177: 1 | AR177: 1 | AS177: 1 | AT177: 1 | AU177: 1
A178: 145 | T178: 0 | U178: 0 | V178: 0 | Z178: =IF($V178*Z$33*1000-$T178>=0,1,0) -> 1 | AA178: 1 | AB178: 1 | AC178: 1 | AD178: 1 | AE178: 1 | AF178: 1 | AG178: 1 | AH178: 1 | AI178: 1 | AJ178: 1 | AK178: 1 | AL178: 1 | AM178: 1 | AN178: 1 | AO178: 1 | AP178: 1 | AQ178: 1 | AR178: 1 | AS178: 1 | AT178: 1 | AU178: 1
A179: 146 | T179: 0 | U179: 0 | V179: 0 | Z179: 1 | AA179: 1 | AB179: 1 | AC179: 1 | AD179: 1 | AE179: 1 | AF179: 1 | AG179: 1 | AH179: 1 | AI179: 1 | AJ179: 1 | AK179: 1 | AL179: 1 | AM179: 1 | AN179: 1 | AO179: 1 | AP179: 1 | AQ179: 1 | AR179: 1 | AS179: 1 | AT179: 1 | AU179: 1
A180: 147 | T180: 0 | U180: 0 | V180: 0 | Z180: 1 | AA180: 1 | AB180: 1 | AC180: 1 | AD180: 1 | AE180: 1 | AF180: 1 | AG180: 1 | AH180: 1 | AI180: 1 | AJ180: 1 | AK180: 1 | AL180: 1 | AM180: 1 | AN180: 1 | AO180: 1 | AP180: 1 | AQ180: 1 | AR180: 1 | AS180: 1 | AT180: 1 | AU180: 1
A181: 148 | T181: 0 | U181: 0 | V181: 0 | Z181: 1 | AA181: 1 | AB181: 1 | AC181: 1 | AD181: 1 | AE181: 1 | AF181: 1 | AG181: 1 | AH181: 1 | AI181: 1 | AJ181: 1 | AK181: 1 | AL181: 1 | AM181: 1 | AN181: 1 | AO181: 1 | AP181: 1 | AQ181: 1 | AR181: 1 | AS181: 1 | AT181: 1 | AU181: 1
A182: 149 | T182: 0 | U182: 0 | V182: 0 | Z182: 1 | AA182: 1 | AB182: 1 | AC182: 1 | AD182: 1 | AE182: 1 | AF182: 1 | AG182: 1 | AH182: 1 | AI182: 1 | AJ182: 1 | AK182: 1 | AL182: 1 | AM182: 1 | AN182: 1 | AO182: 1 | AP182: 1 | AQ182: 1 | AR182: 1 | AS182: 1 | AT182: 1 | AU182: 1
A183: 150 | T183: 0 | U183: 0 | V183: 0 | Z183: 1 | AA183: 1 | AB183: 1 | AC183: 1 | AD183: 1 | AE183: 1 | AF183: 1 | AG183: 1 | AH183: 1 | AI183: 1 | AJ183: 1 | AK183: 1 | AL183: 1 | AM183: 1 | AN183: 1 | AO183: 1 | AP183: 1 | AQ183: 1 | AR183: 1 | AS183: 1 | AT183: 1 | AU183: 1
A184: 151 | T184: 0 | U184: 0 | V184: 0 | Z184: 1 | AA184: 1 | AB184: 1 | AC184: 1 | AD184: 1 | AE184: 1 | AF184: 1 | AG184: 1 | AH184: 1 | AI184: 1 | AJ184: 1 | AK184: 1 | AL184: 1 | AM184: 1 | AN184: 1 | AO184: 1 | AP184: 1 | AQ184: 1 | AR184: 1 | AS184: 1 | AT184: 1 | AU184: 1
A185: 152 | T185: 0 | U185: 0 | V185: 0 | Z185: 1 | AA185: 1 | AB185: 1 | AC185: 1 | AD185: 1 | AE185: 1 | AF185: 1 | AG185: 1 | AH185: 1 | AI185: 1 | AJ185: 1 | AK185: 1 | AL185: 1 | AM185: 1 | AN185: 1 | AO185: 1 | AP185: 1 | AQ185: 1 | AR185: 1 | AS185: 1 | AT185: 1 | AU185: 1
A186: 153 | T186: 0 | U186: 0 | V186: 0 | Z186: 1 | AA186: 1 | AB186: 1 | AC186: 1 | AD186: 1 | AE186: 1 | AF186: 1 | AG186: 1 | AH186: 1 | AI186: 1 | AJ186: 1 | AK186: 1 | AL186: 1 | AM186: 1 | AN186: 1 | AO186: 1 | AP186: 1 | AQ186: 1 | AR186: 1 | AS186: 1 | AT186: 1 | AU186: 1
A187: 154 | T187: 0 | U187: 0 | V187: 0 | Z187: 1 | AA187: 1 | AB187: 1 | AC187: 1 | AD187: 1 | AE187: 1 | AF187: 1 | AG187: 1 | AH187: 1 | AI187: 1 | AJ187: 1 | AK187: 1 | AL187: 1 | AM187: 1 | AN187: 1 | AO187: 1 | AP187: 1 | AQ187: 1 | AR187: 1 | AS187: 1 | AT187: 1 | AU187: 1
A188: 155 | T188: 0 | U188: 0 | V188: 0 | Z188: 1 | AA188: 1 | AB188: 1 | AC188: 1 | AD188: 1 | AE188: 1 | AF188: 1 | AG188: 1 | AH188: 1 | AI188: 1 | AJ188: 1 | AK188: 1 | AL188: 1 | AM188: 1 | AN188: 1 | AO188: 1 | AP188: 1 | AQ188: 1 | AR188: 1 | AS188: 1 | AT188: 1 | AU188: 1
A189: 156 | T189: 0 | U189: 0 | V189: 0 | Z189: 1 | AA189: 1 | AB189: 1 | AC189: 1 | AD189: 1 | AE189: 1 | AF189: 1 | AG189: 1 | AH189: 1 | AI189: 1 | AJ189: 1 | AK189: 1 | AL189: 1 | AM189: 1 | AN189: 1 | AO189: 1 | AP189: 1 | AQ189: 1 | AR189: 1 | AS189: 1 | AT189: 1 | AU189: 1
A190: 157 | T190: 0 | U190: 0 | V190: 0 | Z190: 1 | AA190: 1 | AB190: 1 | AC190: 1 | AD190: 1 | AE190: 1 | AF190: 1 | AG190: 1 | AH190: 1 | AI190: 1 | AJ190: 1 | AK190: 1 | AL190: 1 | AM190: 1 | AN190: 1 | AO190: 1 | AP190: 1 | AQ190: 1 | AR190: 1 | AS190: 1 | AT190: 1 | AU190: 1
A191: 158 | T191: 0 | U191: 0 | V191: 0 | Z191: 1 | AA191: 1 | AB191: 1 | AC191: 1 | AD191: 1 | AE191: 1 | AF191: 1 | AG191: 1 | AH191: 1 | AI191: 1 | AJ191: 1 | AK191: 1 | AL191: 1 | AM191: 1 | AN191: 1 | AO191: 1 | AP191: 1 | AQ191: 1 | AR191: 1 | AS191: 1 | AT191: 1 | AU191: 1
A192: 159 | T192: 0 | U192: 0 | V192: 0 | Z192: 1 | AA192: 1 | AB192: 1 | AC192: 1 | AD192: 1 | AE192: 1 | AF192: 1 | AG192: 1 | AH192: 1 | AI192: 1 | AJ192: 1 | AK192: 1 | AL192: 1 | AM192: 1 | AN192: 1 | AO192: 1 | AP192: 1 | AQ192: 1 | AR192: 1 | AS192: 1 | AT192: 1 | AU192: 1
A193: 160 | T193: 0 | U193: 0 | V193: 0 | Z193: 1 | AA193: 1 | AB193: 1 | AC193: 1 | AD193: 1 | AE193: 1 | AF193: 1 | AG193: 1 | AH193: 1 | AI193: 1 | AJ193: 1 | AK193: 1 | AL193: 1 | AM193: 1 | AN193: 1 | AO193: =IF($V193*AO$33*1000-$T193>=0,1,0) -> 1 | AP193: 1 | AQ193: 1 | AR193: 1 | AS193: 1 | AT193: 1 | AU193: 1
A194: 161 | T194: 0 | U194: 0 | V194: 0 | Z194: =IF($V194*Z$33*1000-$T194>=0,1,0) -> 1 | AA194: 1 | AB194: 1 | AC194: 1 | AD194: 1 | AE194: 1 | AF194: 1 | AG194: 1 | AH194: 1 | AI194: 1 | AJ194: 1 | AK194: 1 | AL194: 1 | AM194: 1 | AN194: 1 | AO194: 1 | AP194: 1 | AQ194: 1 | AR194: 1 | AS194: 1 | AT194: 1 | AU194: 1
A195: 162 | T195: 0 | U195: 0 | V195: 0 | Z195: 1 | AA195: 1 | AB195: 1 | AC195: 1 | AD195: 1 | AE195: 1 | AF195: 1 | AG195: 1 | AH195: 1 | AI195: 1 | AJ195: 1 | AK195: 1 | AL195: 1 | AM195: 1 | AN195: 1 | AO195: 1 | AP195: 1 | AQ195: 1 | AR195: 1 | AS195: 1 | AT195: 1 | AU195: 1
A196: 163 | T196: 0 | U196: 0 | V196: 0 | Z196: 1 | AA196: 1 | AB196: 1 | AC196: 1 | AD196: 1 | AE196: 1 | AF196: 1 | AG196: 1 | AH196: 1 | AI196: 1 | AJ196: 1 | AK196: 1 | AL196: 1 | AM196: 1 | AN196: 1 | AO196: 1 | AP196: 1 | AQ196: 1 | AR196: 1 | AS196: 1 | AT196: 1 | AU196: 1
A197: 164 | T197: 0 | U197: 0 | V197: 0 | Z197: 1 | AA197: 1 | AB197: 1 | AC197: 1 | AD197: 1 | AE197: 1 | AF197: 1 | AG197: 1 | AH197: 1 | AI197: 1 | AJ197: 1 | AK197: 1 | AL197: 1 | AM197: 1 | AN197: 1 | AO197: 1 | AP197: 1 | AQ197: 1 | AR197: 1 | AS197: 1 | AT197: 1 | AU197: 1
A198: 165 | T198: 0 | U198: 0 | V198: 0 | Z198: 1 | AA198: 1 | AB198: 1 | AC198: 1 | AD198: 1 | AE198: 1 | AF198: 1 | AG198: 1 | AH198: 1 | AI198: 1 | AJ198: 1 | AK198: 1 | AL198: 1 | AM198: 1 | AN198: 1 | AO198: 1 | AP198: 1 | AQ198: 1 | AR198: 1 | AS198: 1 | AT198: 1 | AU198: 1
A199: 166 | T199: 0 | U199: 0 | V199: 0 | Z199: 1 | AA199: 1 | AB199: 1 | AC199: 1 | AD199: 1 | AE199: 1 | AF199: 1 | AG199: 1 | AH199: 1 | AI199: 1 | AJ199: 1 | AK199: 1 | AL199: 1 | AM199: 1 | AN199: 1 | AO199: 1 | AP199: 1 | AQ199: 1 | AR199: 1 | AS199: 1 | AT199: 1 | AU199: 1
A200: 167 | T200: 0 | U200: 0 | V200: 0 | Z200: 1 | AA200: 1 | AB200: 1 | AC200: 1 | AD200: 1 | AE200: 1 | AF200: 1 | AG200: 1 | AH200: 1 | AI200: 1 | AJ200: 1 | AK200: 1 | AL200: 1 | AM200: 1 | AN200: 1 | AO200: 1 | AP200: 1 | AQ200: 1 | AR200: 1 | AS200: 1 | AT200: 1 | AU200: 1
... 334 more rows

Sheet Parameter
A1: パラメータ初期値（初期化用なので編集しない）
A2: 推移確率（transition probabilities） | C2: 初期値 | D2: 一時保存用
A3: Treatment A (PF, progression-free) (P, progression) (D, death) | B3: PF→PF | C3: =1-C4-C5 -> 0.85
B4: PF→P | C4: 0.1
B5: PF→D | C5: 0.05
B6: P→P | C6: =1-C7 -> 0.9
B7: P→D | C7: 0.1
B8: D→D | C8: 1
A9: Treatment B | B9: PF→PF | C9: =1-C10-C11 -> 0.8
B10: PF→P | C10: 0.13
B11: PF→D | C11: 0.07
B12: P→P | C12: =1-C13 -> 0.9
B13: P→D | C13: 0.1
B14: D→D | C14: 1
A15: 費用（千円/サイクル）（cost）
A16: Treatment A | B16: PF state | C16: 100
B17: P state | C17: 120
A18: Treatment B | B18: PF state | C18: 80
B19: P state | C19: 120
A20: 効用値（utility）
A21: Treatment A, B | B21: PF state | C21: 0.7
B22: P state | C22: 0.6
B23: D state | C23: 0
A24: 割引（discounting）
A25: 割引率（discount rate）（月） | C25: 0.001651581302
A26: 半周期補正（half cycle correction）
A27: 補正（Y：補正あり、N：補正なし） | C27: N
